{"text_format":"1","workbook":"xlsx","n_sheets":21,"sheets":["Cover Page","Contents","Facility Info","Operational Data","Operational Summary","Perf. Form 1","Energy Form 1","Permit Compliance","Improvements","Public Liasion","Residue Quality","Water","Air (periodic)","Air (CEMS)","HCl","SO2","NOx","TOC","Particulates","CO 95% 10 min","NH3"],"not_rendered":{"charts":7,"images":3,"macros":1,"external_links":1,"defined_names":21,"comments":0,"pivot_tables":0},"unopened":[],"bounds":{"document_bytes":16777216,"sheet_cells":100000,"rows_first":2000,"rows_last":500,"rows_between":2000,"halvings":0,"cell_chars":16384,"cell_head_chars":4096},"cells_cut":0,"cells_raw":0,"read":"whole","date_system":"1900"}

{"sheet":"Cover Page","index":0,"n_rows":53,"n_cols":14,"rows_kept":53,"cut":false,"hidden":false,"merged":[[48,2,48,3],[48,6,48,8],[52,2,52,3],[36,1,36,8],[40,2,40,8],[42,2,42,4],[44,2,44,4],[46,2,46,3],[46,6,46,8],[13,13,18,15],[34,1,34,8],[0,3,5,6],[7,1,23,8],[28,1,28,8],[30,1,30,8],[32,1,32,8]]}
[null,null,null,"Add company logo"]
[null,null,null,null,null,null,null,null,null,null,null,null,null,"Version 20.6 "]
[]
[]
[]
[]
[]
[null,"Add photo"]
[]
[]
[]
[]
[null,null,null,null,null,null,null,null,null,null,null,null,null,"Notes:"]
[null,null,null,null,null,null,null,null,null,null,null,null,null,"This template may require adjustments by individual operators to meet specific reporting requirements as defined in the site Permit(s)"]
[]
[]
[]
[]
[]
[]
[]
[]
[]
[]
[]
[]
[]
[]
[null,"Annual Performance Report 2021"]
[]
[null,"Permit EPR/BR4551IC"]
[]
[null,"Kent Enviropower Limited"]
[]
[null,"Allington Incinerator, Allington Quarry"]
[]
[null,"Kent Enviropower Limited"]
[]
[null,"Year:",2021]
[]
[null,"Address:","Laverstoke Road, Allington, Maidstone, Kent. ME16 0LE"]
[]
[null,"Tel: ","0844 736 9990"]
[]
[null,"Email: "]
[]
[null,"Prepared by:","Trevor Ellis",null,null,"Position:","Environment Manager"]
[]
[null,"Approved by:","Tony Stanbridge",null,null,"Position:","General Manager"]
[]
[null,"Version:",1]
[]
[null,"Issue Date:","31st January 2022"]

{"sheet":"Contents","index":1,"n_rows":44,"n_cols":11,"rows_kept":44,"cut":false,"hidden":false,"merged":[[43,0,46,9],[36,1,36,6],[37,1,37,6],[38,1,38,6],[39,1,39,6],[40,1,40,6],[41,1,41,6],[35,1,35,6],[21,1,21,6],[22,1,22,6],[23,1,23,6],[26,1,26,6],[27,1,27,6],[28,1,28,6],[29,1,29,6],[30,1,30,6],[31,1,31,6],[34,1,34,6],[20,1,20,6],[9,1,9,6],[10,1,10,6],[11,1,11,6],[12,1,12,6],[13,1,13,6],[14,1,14,6],[15,1,15,6],[16,1,16,6],[17,1,17,6],[18,1,18,6],[19,1,19,6],[4,10,7,14],[8,1,8,6],[3,1,3,6],[4,1,4,6],[5,1,5,6],[6,1,6,6],[7,1,7,6]]}
[{"$f":"+'Cover Page'!$B$29","v":"Annual Performance Report 2021"},null,null,null,{"$f":"+'Cover Page'!$B$33","v":"Kent Enviropower Limited"}]
[]
["Contents",null,null,null,null,null,null,null,null,null,"Notes:"]
["Section","Subject",null,null,null,null,null,"Page ",null,null,"Section references and Page nos. to be inserted"]
[null,"Facility Information",null,null,null,null,null,null,null,null,"Sections and Subjects may require adjustment by individual operators to meet specific reporting requirements as defined in the sites Permit(s)"]
[null,"Operational Summary"]
[null,"Operational Data"]
[null,"Performance Form 1"]
[null,"Energy Form 1"]
[null,"Permit Compliance"]
[null,"Improvements"]
[null,"Public Liasion"]
[null,"Residue Quality - Optional"]
[null,"Emissions to Water"]
[null,"Emissions to Air (periodically monitored)"]
[null,"Emissions to Air (continuously monitored)"]
[null,"Hydrogen Chloride emissions"]
[null,"Sulphur Dioxdie emsissions"]
[null,"Oxides of Notrigen emissions"]
[null,"Total Organic Carbon emissions"]
[null,"Particulate Matter emissions"]
[null,"Carbon Monoxide emissions"]
[null,"Ammonia emissions"]
[]
[]
["Version Control"]
["Section","Information",null,null,null,null,null,"Date"]
[]
[]
[]
[]
[]
[]
["Distribution"]
["Copy","Name, Role",null,null,null,null,null,"No."]
[]
[]
[]
[]
[]
[]
[]
[]
["This report is required under the Industrial Emissions Directive’s Article 55(2) requirements on reporting and public information on waste incineration plants and co-incineration plants, which require the operator to produce an annual report on the functioning and monitoring of the plant and make it available to the public. "]

{"sheet":"Facility Info","index":2,"n_rows":89,"n_cols":11,"rows_kept":89,"cut":false,"hidden":false,"merged":[[88,0,110,8],[4,0,17,8],[4,10,13,13],[21,0,54,8],[21,10,30,13],[55,0,87,8]]}
[{"$f":"+'Cover Page'!$B$29","v":"Annual Performance Report 2021"},null,null,null,{"$f":"+'Cover Page'!$B$33","v":"Kent Enviropower Limited"}]
[]
["Plant Description and Design",null,null,null,null,null,null,null,null,null,"Notes:"]
[]
["Installation Description\n\nThe Installation receives non hazardous municipal and industrial waste, recovers recyclable elements for reuse and eliminates the combustible element of the residue by burning in a fluidised bed furnace.  Energy is recovered from the process and converted to electricity in place of non-renewable fossil fuels. The combustion gases are cleaned to meet the standards required by the Directive before discharge from a tall chimney. Ashes and other solid residues are removed from the installation.\n\nThe Installation covers the site and the entire EfW plant including all EfW lines, waste reception, storage, on-site pre-treatment facilities, water, fuel and air supply systems, boiler, facilities for the treatment of exhaust gases, on-site facilities for treatment or storage of residues and waste water, stack, devices and systems for controlling combustion operations, recording and monitoring conditions.\n\nThe Installation has a design throughput of approx 580,000 tonnes per annum with an EfW capacity approx 560,000 tonnes per annum. The transfer loading station receives food waste and clean source separated recyclables which it reloads for onward transport and recovery.  There is a single waste reception followed by three independent waste treatment lines each complete with a heat recovery boiler, acid gas abatement, bag filter and a separate flue in the chimney. The heat produced from the combustion of the waste is used to generate steam in the boilers and the steam is then combined and passed to a steam turbine which generates approx 34.5 MW of electrical energy for export to the National Grid.",null,null,null,null,null,null,null,null,null,"Include summary of plant design, design capacity, no. of combustion lines, electrical and heat capacity and any other general information that descibes the facility, its location and purpose "]
[]
[]
[]
[]
[]
[]
[]
[]
[]
[]
[]
[]
[]
[]
["Summary of Operational Processes and Procedures"]
[]
["Raw Materials\nWaste is delivered to the plant in road vehicles which are weighed before proceeding to the tipping\nhall. This is a fully enclosed building, maintained under slight negative pressure to ensure that no\nodours, dust or litter can escape the building. The vehicles carry either unsorted mixed municipal\nwaste, sorted waste for recycling or mixed recyclable waste and non recyclable waste and each tip\ninto the appropriate section of the tipping hall.\nThe unsorted mixed waste (black bag) is transferred by crane grab to a waste shredding line, it then\nmoves forward through a metals extraction section where ferrous metals are removed for recycling\nbefore moving to the prepared fuel bunker.\nThe facility also operates as a waste transfer site. It receives clean mixed recyclates and food wastes\ncollected in the community and loads them in bulk onto their designated transport vehicles for transport\noff site for recovery.\nA crane grab in the prepared fuel bunker both mixes the waste and charges the hoppers of the three\nincineration lines.\nHydrated lime for the flue gas cleaning process is delivered by bulk tanker and offloaded pneumatically\ninto three 125m3 silos vented through a reverse pulse jet filter.\nActivated carbon for the flue gas cleaning process is stored in dedicated silos that are pneumatically\nfilled from delivery trucks. There are three silos, one for each line, each equipped with filters to prevent\ndust emissions during filling.\nUrea, dissolved in water is stored in a fully bunded tank and is injected into the furnaces as necessary\nto control NOx emissions.\nCaustic soda for water treatment resin regeneration is delivered by bulk tanker and offloaded into a\n5.5 m3 tank with scrubber, inside the demineralisation area.\nHydrochloric acid for water treatment resin regeneration is delivered by bulk tanker and offloaded into\na 5.5 m3 tank vented through the caustic soda scrubber in a bund outside the demineralisation area.\nVarious other water treatment chemicals are delivered in appropriate containers and stored in bunded\nareas.\nGas oil for the combustion chamber burners and on-site vehicles is stored in a fully bunded 150 m3\ntank.\nSand for the fluidised bed furnaces is stored in 3 silos each of 55 cubic meters capacity.\nVarious maintenance materials (oils, greases, insulants, antifreezes, welding and fire fighting gases\netc.) are stored in the appropriate manner.\n                                                                                                                                                                                                                                                                                                                                                                                                                                                                                                                                                                                                                                                                                                                                                                                                                                                                                                                                                                                                                                                                                                                                        \n                                                                                                                                                                                                                                                                                                                                                                                                                                                                                         Combustion Process:-  The technology employed for incineration is the ROWITEC unit which uses a fluidised bed process.\nThe design has an inclined air distributor plate with a number of separate air supply chambers providing\ndifferential air flows across the bed, causing a revolving action. This technique promotes rapid and\nuniform mixing of the sand and bottom ash and ensures that heavy inert and non-combustible material\nmigrates to the sides of the bed where they can easily be removed.\nAn angled furnace wall above the fluidised bed zone restrains bed expansion under high fluidising air\nflows and so minimises particulate carry over. The elliptical patterns of air flow converge in the centre\nof the combustion area ensuring effective vertical and lateral turbulent mixing and high combustion\nefficiency and uniformity.\nThe waste is burned on a bed consisting of sand and ash that is held in suspension by an upward flow\nof combustion air that circulates the combustion mixture up to the throat of the furnace.\nThe furnace operating design is based on a thermal capacity of 53.8MW at full load and this can be\nachieved over the typical range of waste calorific values expected with municipal waste.\nThe combustion air system provides the furnace with the total air requirements for fluidisation and\ncombustion. Primary air is supplied to the bottom of the combustion chamber and fluidises the bed.\nThis air is extracted from the waste reception and storage buildings and destroys all odours in the\ncombustion chamber.\nEach furnace is equipped with two fuel oil burners for use at start-up to heat the furnace and also\nduring extreme reductions in waste fuel calorific value when the temperature of the furnace would\notherwise fall below 850 degrees Centigrade.\nCombustion control of the furnace will be achieved through a combination of furnace bed and freeboard\ntemperature control, primary air flow control, oxygen control within the flue gas and furnace load.\nRecirculated flue gas is fed to the furnace bed as a cooling medium to control the furnace bed\ntemperature and also to assist the control of NOx by influencing the combustion temperature conditions\nwithin the furnace.\nThe furnace bed is managed to remove non-combustible material (bottom ash) from the bed and\nmaintain the sand level within the optimum operating range. Bottom ashes produced in the furnace\ntogether with sand migrate down the slope of the furnace to the discharge section located at each side\nof the bed. The bottom ash and sand are both withdrawn from the discharge sections of the bed by\ntwo water-cooled discharge screw conveyors. Material passing out of the screw conveyors is\ndischarged to a vibrating screen. Undersize material is returned to the sand hopper for re-use within\nthe furnace while the oversized material is sent off site for recovery or re-use or landfill.\n",null,null,null,null,null,null,null,null,null,"Include summary of key processes and procedures such as (but not limited to); waste reception, control rooms, grate, bed and bolier, energy & heat  generation, cooling systems, residue management, emission controls, health and safety systems, maintenance"]
[]
[]
[]
[]
[]
[]
[]
[]
[]
[]
[]
[]
[]
[]
[]
[]
[]
[]
[]
[]
[]
[]
[]
[]
[]
[]
[]
[]
[]
[]
[]
[]
[]
["\nEnergy Recovery\nHot gases from the furnace pass through to a boiler designed to generate steam. The boiler comprises\ntwo fully water cooled radiation chambers, a single pass horizontal plain tube convective heating\nsurface, incorporating a three stage convective superheater unit and a plain tube economiser section.\nThe economiser is designed for high velocity gas flow to minimise the reformation of dioxins in the\ncritical de Novo synthesis range.\nSteam is generated at 65 bar and a final temperature of 420 degrees Centigrade.\nThe high pressure steam from all three boilers feeds into a common header which in turn will feed a\ncondensing steam turbine that will generate electricity. Steam exiting the turbine will be condensed in\nan air cooled condenser and the condensate returned to the boilers.\nGas Cleaning\nThe plant is designed to meet the requirements of the Industrial Emissions Directive as a minimum for\nreleases to air by a combination of main process design and operation and abatement equipment.\nFlue gases pass from the boiler to the gas cleaning equipment. The gas passes to an electrostatic\nprecipitator (ESP) for the separation of ash carried over from the furnace with the flue gas. Material\ncollected in the ESP will be discharged by means of rotary valves and chain conveyors and then\npneumatically fed to the ash silos or re-injected into the flue gas cleaning system.\nGases leaving the ESP enter the gas cleaning system. This comprises a circo clean reactor and bag\nfilter system. Gases entering the circo clean reactor will be at a temperature of 190 to 230 degrees C\nand will come into contact with a mixture of water, hydrated lime and activated carbon that have been\ninjected into the reactor. The reactor is designed to reduce or remove acidic pollutants such as HCl,\nSO2 and HF by the use of the hydrated lime and dioxins and furans, PCBs, PAHs, mercury vapour and\nheavy metal salts such as mercury chloride by the use of the activated carbon. The injected water enhances the reactions and cools the gas. The control system of the circo clean reactor optimises the\nuse of reactants by balancing the feed rate with the concentration of the pollutants entering the circo\nclean reactor.\nThe final stage of the gas cleaning system is the bag filter unit which separates the particulate material\nfrom the flue gas. The baghouse filter consists of compartments each of which contains a number of\ntubular filter bags. A thick porous layer of particulate builds on the bag surfaces to form a filter cake\nwhich efficiently removes ultra fine particles from the gas stream and the excess lime continues to\nreact with the acid gases.\nBag house residue is discharged from the compartments via the integrated buffer storage by a closed\npneumatic conveying system into the reaction product silos. Silos are equipped with a filter, hopper\nheating and fluidisation system to assist discharge. The residue is then discharged directly into road\nvehicles under dust free conditions for transport off site to a licensed facility.\nNitrogen oxides (NOx) abatement is achieved by the use of both flue gas recirculation (FGR) and\nselective non-catalytic reduction (SNCR). The SNCR is based on the injection of urea into the furnace\nchambers before the boilers and before the lime and carbon injection and before the gas passes to\nbag filters.\nThe cleaned gas then discharges to atmosphere via three 80-metre flues in a common stack at an\nefflux velocity in excess of 15 ms-1 at maximum throughput.\nAncillary Operations\nDemineralised water is required to compensate for boiler blowdown losses. A package\ndemineralisation plant provides this water. The ion exchange resins are regenerated using sodium\nhydroxide and hydrochloric acid and the regeneration effluent is routed through a neutralisation tank\nto the collection pit for reuse where possible.\nAsh Handling\nBottom ash, the combined boiler and ESP ash and the flue gas treatment residue (FGTR) from the\nbag filter system, are each sent for separate disposal off site by licensed contractors subject to waste\nlicensing legislation. FGTR is not mixed with any other ash at any time. The bottom ash is likely to be\nsubject to ferrous and non ferrous metals extraction by the contractors before disposal or reuse. All\noperations will be subject to waste licensing legislation and be tracked by the Environment Agency. At\nleast quarterly sampling of the bottom ash will be carried out to ensure effective burn out is being\nachieved by testing for the “loss on ignition” of the residual ash. All other solid waste residues arising\nfrom the operation of the process will be removed from site, in enclosed containers, for disposal by\nsuitable contractors.\nLiquid Effluent and Site Drainage\nUncontaminated surface water from the roads and parking area that is not reused within the process\nwill be discharged to sewer.\n"]
[]
[]
[]
[]
[]
[]
[]
[]
[]
[]
[]
[]
[]
[]
[]
[]
[]
[]
[]
[]
[]
[]
[]
[]
[]
[]
[]
[]
[]
[]
[]
[]
["Emissions Monitoring\nEmissions from the stack are continuously monitored for: particulate, carbon monoxide (CO), ammonia\n(NH3), sulphur dioxide (SO2), hydrogen chloride (HCl), oxygen (O2), nitrogen oxides (NOx) and volatile\norganic compounds (VOC). In addition periodic sampling and measurement will be carried out for\nmetals cadmium (Cd), thallium (Tl), mercury (Hg), antimony (Sb), arsenic (As), lead (Pb), chromium\n(Cr), cobalt (Co), copper (Cu), manganese (Mn), nickel (Ni), vanadium (V), dioxins and furans, dioxin\nlike PCBs, hydrogen fluoride (HF) and nitrous oxide (N2O). Periodic measurements will be carried out\nfour times in the first year and thereafter either at the same frequency or twice per year dependant on\nthe substances.\n"]

{"sheet":"Operational Data","index":3,"n_rows":69,"n_cols":11,"rows_kept":69,"cut":false,"hidden":false,"merged":[[5,10,6,10],[7,10,18,10],[33,1,38,1],[30,2,30,5],[30,6,30,7],[3,1,3,2],[7,1,19,1],[23,1,26,1],[28,1,29,1],[56,0,60,0]]}
[{"$f":"+'Cover Page'!$B$29","v":"Annual Performance Report 2021"},null,null,null,{"$f":"+'Cover Page'!$B$33","v":"Kent Enviropower Limited"}]
[]
["Operational Data",null,null,null,null,null,null,null,null,null,"Notes:"]
["Plant Size",560000,null,"tonnes pa",41670,"MWth",376680,"MWe",null,null,"* - RDF to include SRF "]
["No. of combustion lines",3,null,"No. of Turbines:",null,1,null,null,null,null,"** - CHP plants only"]
[null,null,null,null,null,null,null,null,null,null,"2020 updates include;  heat in MWh, water in Litres, NCV in MJ/kg"]
["Waste types received","Unit","Q1","Q2","Q3","Q4","Year Total","%"]
["Household / Local Authority","tonnes",87234.16,88701.47,87545.239999999991,80098.58,{"$f":"SUM(C8:F8)","v":343579.45},{"$f":"IF(G8>0,G8/$G$18,\"-\")","v":0.7195386576626529},null,null,"Availabiity Definition: 'the availability of a line is to be calculated by the number of hours the line reported Continuously Monitored emission levels to the Regulator through the calendar year divided by the total number of hours in that year. \nThe overall plant availability is calculated as the Mean of all lines in the plant. For clarity this includes periods of Other Than Normal Operating Conditions (OTNOC) and abnormal operation.'  \n\nRationale: The primary function of an Energy from Waste facility is the disposal of waste. It follows therefore that the availability of a plant is determined by the period of time a facility spends undertaking this activity."]
["Commercial & Industrial ",null,30444.69,33135.339999999997,28399.94,36956.32,{"$f":"SUM(C9:F9)","v":128936.29000000001},0.27002384755724634]
["Hazardous ",null,0,0,0,0,0,"-"]
["Clinical",null,0,0,0,0,0,"-"]
["Waste wood (biomass) ",null,0,0,0,0,0,"-"]
["Refuse Derived Fuel * - H'hold/LA",null,0,0,0,0,{"$f":"SUM(C13:F13)","v":0},"-"]
["Refuse Derived Fuel *  - C&I",null,0,0,0,0,0,"-"]
["Food waste",null,1301.22,1217.7,1223.8599999999999,1241.1199999999999,4983.8999999999996,1.0437494780100776E-2]
["Recylates waste",null,5810.06,5722.08,5018.9400000000005,5172.16]
["Card/Paper",null,686.66000000000008,485,393.1,565]
["Total waste received",null,{"$f":"SUM(C8:C17)","v":125476.79000000001},{"$f":"SUM(D8:D17)","v":129261.59},{"$f":"SUM(E8:E17)","v":122581.08},{"$f":"SUM(F8:F17)","v":124033.18},{"$f":"SUM(G8:G17)","v":477499.64},1]
["Rejected Waste ",null,7.26,6.14,4.18,63.78,{"$f":"SUM(C19:F19)","v":81.36},{"$f":"IF(G19>0,G19/$G$18,\"-\")","v":1.7038756301470718E-4}]
["Unprocessed waste transferred out",null,7797.9400000000005,7424.78,6635.9000000000005,6978.28,{"$f":"SUM(C20:F20)","v":28836.9},{"$f":"IF(G20>0,G20/$G$18,\"-\")","v":6.0391459143299041E-2}]
["Total waste combusted",null,{"$f":"C18-SUM(C19:C20)","v":117671.59000000001},{"$f":"D18-SUM(D19:D20)","v":121830.67},115941,{"$f":"F18-SUM(F19:F20)","v":116991.12},{"$f":"SUM(C21:F21)","v":472434.38},{"$f":"IF(G21>0,G21/$G$18,\"-\")","v":0.98939211765688451}]
[]
["Energy Useage / Export","Unit","Q1","Q2","Q3","Q4","Year Total","KWh/te"]
["Power Generated","MWh",60018.1,62762.85,54432.07,62900.5,{"$f":"SUM(C24:F24)","v":240113.52},{"$f":"IF(G24>0,G24*1000/$G$21,\"-\")","v":508.24734643571026}]
["Power Exported",null,45172,47298,39697,47590,{"$f":"SUM(C25:F25)","v":179757},{"$f":"IF(G25>0,G25*1000/$G$21,\"-\")","v":380.49093717523266}]
["Power Used on site",null,12118.73,14066.2,12585.29,15005.6,{"$f":"SUM(C26:F26)","v":53775.82},{"$f":"IF(G26>0,G26*1000/$G$21,\"-\")","v":113.82706736965248}]
["Power Imported",null,1060,503,1314,69,2946,{"$f":"IF(G27>0,G27*1000/$G$21,\"-\")","v":6.2357866504126989}]
["Parasitic Load","%",{"$f":"100*(C26/C24)","v":20.191792142703619},{"$f":"100*(D26/D24)","v":22.41166549957499},{"$f":"100*(E26/E24)","v":23.121093869845481},{"$f":"100*(F26/F24)","v":23.856090174163956},{"$f":"IF(G24>0,1-G25/(G24+G27),\"-\")","v":0.26044040570803395}]
["Thermal Energy Produced **","MWh",0,0,0,0,{"$f":"SUM(C29:F29)","v":0},{"$f":"IF(G29>0,G29*1000/$G$21,\"-\")","v":"-"}]
["Thermal Energy Exported **",null,0,0,0,0,0,{"$f":"IF(G30>0,G30*1000/$G$21,\"-\")","v":"-"}]
["R1 value",null,0.54,null,null,null,"Design / Operational / n/a"]
[]
["Waste Disposal & Recovery","Unit","Q1","Q2","Q3","Q4","Year Total","% inputs"]
["APC Residues - produced","tonnes",9176.2800000000007,9460.98,9343.4999999999982,10866.79,{"$f":"SUM(C34:F34)","v":38847.550000000003},{"$f":"IF(G34>0,G34/$G$21,\"-\")","v":8.222845678589269E-2}]
["IBA - produced",null,12909.82,14997.880000000001,12069.339999999998,11401.080000000002,51378.12,{"$f":"IF(G35>0,G35/$G$21,\"-\")","v":0.10875186517966792}]
["Metals recycling",null,3100.8599999999997,3521.1200000000003,3061.72,2974.8199999999997,{"$f":"SUM(C36:F36)","v":12658.519999999999},2.6794239657156192E-2]
["Other",null,0,0,0,0,{"$f":"SUM(C37:F37)","v":0},"-"]
["Other",null,0,0,0,0,0,"-"]
["Other",null,0,0,0,0,0,"-"]
[]
["Raw Material Usage","Unit","Q1","Q2","Q3","Q4","Year Total","kg or Ltr /te"]
["Mains Water","ltrs",33580,33181,37822,42252,{"$f":"SUM(C42:F42)","v":146835},{"$f":"IF(G42>0,G42/$G$21,\"-\")","v":0.31080506884363496}]
["Other Water","ltrs",0,0,0,0,0,{"$f":"IF(G43>0,G43/$G$21,\"-\")","v":"-"}]
["Ammonia","kgs",0,1000,0,1000,2000,4.2333921591396458E-3]
["Urea","kgs",22000,0,66000,87000,{"$f":"SUM(C45:F45)","v":175000},0.37042181392471901]
["Activated Carbon","kgs",61000,78000,34000,76000,249000,0.52705732381288595]
["Lime / hydrated lime","kgs",935000,882000,664000,839000,3320000,7.0274309841718123]
["Fuel oil","ltrs",863850,635160,726910,375480,{"$f":"SUM(C48:F48)","v":2601400},5.506373181392938]
["Gas","cf",0,0,0,0,0,"-"]
["Caustic Soda","kgs",62000,41000,74000,50000,{"$f":"SUM(C50:F50)","v":227000},0.48049001006234981]
["Hydrochloric Acid","kgs",63000,60000,57000,40000,{"$f":"SUM(C51:F51)","v":220000},0.46567313750536105]
["Sand","kgs",865000,984000,533000,639000,{"$f":"SUM(C52:F52)","v":3021000},6.3945388563804348]
["Salt","kgs",4000,2000,2000,0,{"$f":"SUM(C53:F53)","v":8000},1.6933568636558583E-2]
["Other",null,0,0,0,0,0]
[]
["Summary ","Line/Unit","Q1","Q2","Q3","Q4","Year Total",null,null,"Hrs in year "]
["Availability of waste combustion by line, hrs",1,1620.28,1597.82,1515.69,1584.78,{"$f":"SUM(C57:F57)","v":6318.57}," x %",null,8760]
[null,2,1571.69,1868.3,1675.63,1934.08,7049.7,"x %"]
[null,3,1794.36,1856.48,2036.99,1982.12,7669.95,"x %"]
[null,4,0,0,0,0,0,"x %"]
[null,5,0,0,0,0,{"$f":"SUM(C61:F61)","v":0},"x %"]
["Overall Availability, mean avg. of all lines, hrs",null,1662.11,1774.2,1742.7700000000002,1833.6599999999999,{"$f":"AVERAGE(G57:G61)","v":4207.6440000000002},"x %"]
["Hours of turbine operations, hrs",1,1971.29,2128.59,2040.87,2175.4499999999998,8316.2000000000007,"x %"]
["Hours of turbine operations, hrs",2,0,0,0,0,0,"x %"]
["Hours of heat / steam export",null,0,0,0,0,0,{"$f":"IF(B65>0,G64/J57,\"n/a\")","v":"n/a"}]
["Net Calorific Value of waste","MJ/kg",13.52,13.52,13.52,13.52,null,"-"]
["Abnormal Events","qty.",1,2,3,0,6,{"$f":"IF(G67>0,\"yes\",\"no\")","v":"yes"}]
["Abnormal operation","hours",0.5,1,5.75,0,7.25,{"$f":"+(G68)/J57","v":8.2762557077625571E-4}]
["Permit Breaches","qty.",2,1,2,1,6,{"$f":"IF(G69>0,\"yes\",\"no\")","v":"yes"}]

{"sheet":"Operational Summary","index":4,"n_rows":31,"n_cols":11,"rows_kept":31,"cut":false,"hidden":false,"merged":[[4,0,26,8],[4,10,13,13],[30,0,51,8],[30,10,39,13]]}
[{"$f":"+'Cover Page'!$B$29","v":"Annual Performance Report 2021"},null,null,null,{"$f":"+'Cover Page'!$B$33","v":"Kent Enviropower Limited"}]
[]
["Summary of Plant Operations and Maintenance during the reporting year",null,null,null,null,null,null,null,null,null,"Notes:"]
[]
["The focus on preventative maintenance has continued to improve throughout 2021, all based on a plant criticality assessment that continues to be updated periodically – this assess the criticality of plant equipment against a number of criteria including plant availability, impact on Health, Safety or Environment, cost, duty etc. The number of intrusive and non-intrusive inspections and routines has been increased considerably, which a new condition monitoring contract has been implemented that sees the number of assets monitored increase four-fold in the last year – this has had a considerable impact, identifying faults earlier than ever and allowing them to be dealt with before impacting the plant.\n\nLine 1 underwent its normal planned outage in October 2021 where over 1,200 maintenance tasks were undertaken during the 3 week period. A significant drive on Health and Safety performance, combined with a number of changes to key contract partners, saw a 76% reduction in accidents, whilst the total scope of work, completed on time, has seen the most significant improvement in reliability in recent years in comparison to pre-outage. Significant works completed include refractory repairs to the Rowitec, automatic Inconel weld overlay to selected areas of the boiler and considerable repair and improvements to the Electrostatic Precipitator.",null,null,null,null,null,null,null,null,null,"Include summary of key operational and/or mainteanance activity undertaken in the year, such as any major component upgrades and/or replacements "]
[]
[]
[]
[]
[]
[]
[]
[]
[]
[]
[]
[]
[]
[]
[]
[]
[]
[]
[]
[]
[]
[]
[]
["Summary of Residue Handling for the reporting year"]
[]
["Bottom ash, the combined boiler and ESP ash and the flue gas treatment residue (FGTR) from the\nbag filter system, are each sent for separate disposal off site by licensed contractors subject to waste\nlicensing legislation. FGTR is not mixed with any other ash at any time. The bottom ash is likely to be\nsubject to ferrous and non ferrous metals extraction.\nIBA is subject to hazardous assessment twice a month and approx. 42 vehicles are sent off site every week for recovery.\nThe APC residues are tested quarterly and approx. 36 tankers are sent off site every week. ",null,null,null,null,null,null,null,null,null,"Include in here a summary of residue handling regimes and destinations "]

{"sheet":"Perf. Form 1","index":5,"n_rows":61,"n_cols":10,"rows_kept":61,"cut":false,"hidden":false,"merged":[[9,0,9,9],[10,0,10,1],[10,2,10,3],[10,4,10,5],[10,6,10,7],[10,8,10,9],[11,0,11,1],[11,2,11,3],[11,4,11,5],[2,0,2,4],[2,6,2,8],[3,1,3,4],[5,3,5,4],[5,6,5,7],[8,0,8,1],[8,2,8,3],[8,4,8,5],[8,6,8,7],[8,8,8,9],[11,6,11,7],[11,8,11,9],[12,0,12,1],[12,2,12,3],[12,4,12,5],[12,6,12,7],[12,8,12,9],[13,0,13,1],[13,2,13,3],[13,4,13,5],[13,6,13,7],[13,8,13,9],[14,0,14,3],[14,4,14,5],[14,6,14,7],[14,8,14,9],[15,0,15,1],[15,2,15,3],[15,4,15,5],[15,6,15,7],[15,8,15,9],[16,0,16,9],[17,0,17,1],[17,2,17,3],[17,4,17,5],[17,6,17,7],[17,8,17,9],[18,0,18,1],[18,2,18,3],[18,4,18,5],[18,6,18,7],[18,8,18,9],[19,0,19,1],[19,2,19,3],[19,4,19,5],[19,6,19,7],[19,8,19,9],[20,0,20,1],[20,2,20,3],[20,4,20,5],[20,6,20,7],[20,8,20,9],[21,0,21,1],[21,2,21,3],[21,4,21,5],[21,6,21,7],[21,8,21,9],[22,0,22,3],[22,4,22,5],[22,6,22,7],[22,8,22,9],[23,0,23,3],[23,4,23,5],[23,6,23,7],[23,8,23,9],[25,0,25,9],[26,0,28,9],[31,0,31,3],[31,7,31,8],[32,0,32,3],[32,4,32,5],[33,0,33,3],[33,4,33,5],[34,0,34,3],[34,4,34,5],[35,0,35,3],[35,4,35,5],[36,0,36,3],[36,4,36,5],[44,0,44,3],[44,4,44,5],[37,0,37,3],[38,0,38,3],[39,0,39,3],[40,0,40,3],[41,0,41,3],[42,0,42,3],[43,0,43,3],[37,4,37,5],[38,4,38,5],[39,4,39,5],[40,4,40,5],[41,4,41,5],[42,4,42,5],[43,4,43,5],[44,7,44,8],[54,0,54,1],[56,0,56,9],[57,0,58,9],[45,0,45,9],[46,0,47,9],[50,0,50,1],[50,2,50,9],[52,0,52,1],[53,0,53,1]]}
[2021," Annual Reporting Performance Form 1"]
[]
["Permit BR4551IC",null,null,null,null,"Operator: ","Kent Enviropower Limited"]
["Facility:",{"$f":"+'[1]Cover Page'!B33:I33","v":"Name of Facility as per Permit"},null,null,null,"Form:","Performance 1"]
[]
["Reporting  Period from: ",null,null,"2021-01-01",null,"to:","2021-12-31"]
[]
[{"$f":"+A1","v":2021},"Annual Reporting of Waste Disposal and Recovery"]
["Waste Description",null,"Disposal Route(s)",null,"Disposal Tonnes",null,"Recovery Tonnes",null,"% / tonne of waste incinerated"]
["1) Hazardous Wastes"]
["APC Residues",null,"Landfill",null,22138.61,null,null,null,{"$f":"IF((E11+G11)>0,(E11+G11)/'Operational Data'!$G$21, \"-\")","v":4.6860708994125283E-2}]
["APC Residues",null,"Recycling",null,null,null,17945.18,null,{"$f":"IF((E12+G12)>0,(E12+G12)/'Operational Data'!$G$21, \"-\")","v":3.7984492153174794E-2}]
[null,null,null,null,null,null,null,null,{"$f":"IF((E13+G13)>0,(E13+G13)/'Operational Data'!$G$21, \"-\")","v":"-"}]
[null,null,null,null,null,null,null,null,{"$f":"IF((E14+G14)>0,(E14+G14)/'Operational Data'!$G$21, \"-\")","v":"-"}]
["Total Hazardous Waste",null,null,null,{"$f":"SUM(E11:F14)","v":22138.61},null,{"$f":"SUM(G11:H14)","v":17945.18},null,{"$f":"IF((E15+G15)>0,(E15+G15)/'Operational Data'!$G$21, \"-\")","v":8.484520114730007E-2}]
[]
["2) Non-Hazardous Wastes"]
["IBA",null,"Recycling",null,null,null,51378.12,null,{"$f":"IF((E18+G18)>0,(E18+G18)/'Operational Data'!$G$21, \"-\")","v":0.10875186517966792}]
["Ferrous Metal",null,"Recycling",null,null,null,12658.519999999999,null,{"$f":"IF((E19+G19)>0,(E19+G19)/'Operational Data'!$G$21, \"-\")","v":2.6794239657156192E-2}]
[null,null,null,null,null,null,null,null,{"$f":"IF((E20+G20)>0,(E20+G20)/'Operational Data'!$G$21, \"-\")","v":"-"}]
[null,null,null,null,null,null,null,null,{"$f":"IF((E21+G21)>0,(E21+G21)/'Operational Data'!$G$21, \"-\")","v":"-"}]
[null,null,null,null,null,null,null,null,{"$f":"IF((E22+G22)>0,(E22+G22)/'Operational Data'!$G$21, \"-\")","v":"-"}]
["Total Non-Hazardous Waste",null,null,null,{"$f":"SUM(E18:F22)","v":0},null,{"$f":"SUM(G18:H22)","v":64036.639999999999},null,{"$f":"IF((E23+G23)>0,(E23+G23)/'Operational Data'!$G$21, \"-\")","v":0.13554610483682411}]
["TOTAL WASTE",null,null,null,{"$f":"+E23+E15","v":22138.61},null,{"$f":"+G23+G15","v":81981.820000000007},null,{"$f":"IF((E24+G24)>0,(E24+G24)/'Operational Data'!$G$21, \"-\")","v":0.22039130598412421}]
[]
["Operator’s comments :"]
[]
[]
[]
[]
[{"$f":"+A1","v":2021},"Annual Reporting of Water and Other Raw Material Usage"]
["Raw Material",null,null,null,"Usage",null,"Unit","Specific Useage",null,"Unit"]
["Mains Water",null,null,null,{"$f":"'Operational Data'!G42","v":146835},null,"m3",{"$f":"IF(E33>0,E33/'Operational Data'!$G$21,\"-\")","v":0.31080506884363496},null,"m3/te"]
["Total Water",null,null,null,{"$f":"'Operational Data'!G42","v":146835},null,"m3",{"$f":"IF(E34>0,E34/'Operational Data'!$G$21,\"-\")","v":0.31080506884363496},null,"m3/te"]
["Ammonia",null,null,null,{"$f":"'Operational Data'!G44","v":2000},null,"kgs",{"$f":"IF(E35>0,E35/'Operational Data'!$G$21,\"-\")","v":4.2333921591396458E-3},null,"kg/te"]
["Urea",null,null,null,{"$f":"'Operational Data'!G45","v":175000},null,"kgs",{"$f":"IF(E36>0,E36/'Operational Data'!$G$21,\"-\")","v":0.37042181392471901},null,"kg/te"]
["Activated Carbon",null,null,null,{"$f":"'Operational Data'!G46","v":249000},null,"kgs",{"$f":"IF(E37>0,E37/'Operational Data'!$G$21,\"-\")","v":0.52705732381288595},null,"kg/te"]
["Lime / hydrated lime",null,null,null,{"$f":"'Operational Data'!G47","v":3320000},null,"kgs",{"$f":"IF(E38>0,E38/'Operational Data'!$G$21,\"-\")","v":7.0274309841718123},null,"kg/te"]
["Fuel oil",null,null,null,{"$f":"'Operational Data'!G48","v":2601400},null,"ltrs",{"$f":"IF(E39>0,E39/'Operational Data'!$G$21,\"-\")","v":5.506373181392938},null,"ltrs/te"]
["Gas",null,null,null,{"$f":"'Operational Data'!G49","v":0},null,"cf",{"$f":"IF(E40>0,E40/'Operational Data'!$G$21,\"-\")","v":"-"},null,"cf/te"]
["Caustic Soda",null,null,null,{"$f":"'Operational Data'!G50","v":227000},null,"kgs",{"$f":"IF(E41>0,E41/'Operational Data'!$G$21,\"-\")","v":0.48049001006234981},null,"kg/te"]
["Hydrochloric Acid",null,null,null,{"$f":"'Operational Data'!G51","v":220000},null,"kgs",{"$f":"IF(E42>0,E42/'Operational Data'!$G$21,\"-\")","v":0.46567313750536105},null,"kg/te"]
["Sand",null,null,null,{"$f":"'Operational Data'!G52","v":3021000},null,"kgs",{"$f":"IF(E43>0,E43/'Operational Data'!$G$21,\"-\")","v":6.3945388563804348},null,"kg/te"]
["Salt",null,null,null,{"$f":"'Operational Data'!G53","v":8000},null,"kgs",{"$f":"IF(E44>0,E44/'Operational Data'!$G$21,\"-\")","v":1.6933568636558583E-2},null,"kg/te"]
[]
["Operator’s comments :"]
[]
[]
[]
[{"$f":"+A31","v":2021},"Annual Reporting of other performance indicators "]
["Parameter",null,"Results by Line"]
[null,null,"A1","A2","A3","A4","A5",null,"Turbine 1","Turbine 2"]
["Operating hours for the year, hours",null,6318.57,7049.7,7669.95,null,null,null,8316.2000000000007]
["Number of periods of abnormal operation, qty.",null,4,0,2,null,null,null,0]
["Cumulative hours of abnormal operation for this year, hours",null,2,0,5.25,null,null,null,0]
[]
["Operator’s comments :"]
[]
[]
[]
["Signed: ",null,null,null,null,null,"Date:","31st January 2022"]

{"sheet":"Energy Form 1","index":6,"n_rows":29,"n_cols":8,"rows_kept":29,"cut":false,"hidden":false,"merged":[[2,6,2,8],[4,1,4,4],[6,3,6,4],[6,6,6,7],[8,0,8,2],[8,3,8,4],[8,6,8,8],[9,0,9,2],[9,3,9,4],[9,6,9,8],[10,0,10,2],[10,3,10,4],[10,6,10,8],[14,6,14,8],[11,0,11,2],[11,3,11,4],[11,6,11,8],[12,0,12,2],[12,3,12,4],[12,6,12,8],[13,0,13,2],[13,3,13,4],[13,6,13,8],[14,0,14,2],[14,3,14,4],[15,0,15,2],[15,3,15,4],[15,6,15,8],[17,0,17,8],[18,0,24,8]]}
[{"$f":"+'Cover Page'!C39","v":2021}," Annual Reporting of Energy Usage/Export"]
[]
[{"$f":"+'Cover Page'!B31","v":"Permit EPR/BR4551IC"},null,null,null,null,"Operator: ",{"$f":"+'Cover Page'!B37:I37","v":0}]
[]
["Facility:",{"$f":"+'Cover Page'!B33:I33","v":"Kent Enviropower Limited"},null,null,null,"Form:","Energy 1"]
[]
["Reporting  Period from: ",null,null,"2021-01-01",null,"to:","31st December 2021"]
[]
["Energy Source",null,null,"Energy Usage",null,"Unit","Specific Useage (KWh/tonne incinerated"]
["Electricity Produced",null,null,{"$f":"+'Operational Data'!G24","v":240113.52},null,"MWh",{"$f":"+'Operational Data'!H24","v":508.24734643571026}]
["Electricity Imported   ",null,null,{"$f":"+'Operational Data'!G27","v":2946},null,"MWh",{"$f":"+'Operational Data'!H25","v":380.49093717523266}]
["Electricity Exported",null,null,{"$f":"+'Operational Data'!G48","v":2601400},null,"MWh",{"$f":"+'Operational Data'!H21","v":0.98939211765688451}]
["Gas Oil",null,null,2302.2399999999998,null,"tonnes",59.48]
[]
[]
[]
[]
["Operator’s comments :"]
[]
[]
[]
[]
[]
[]
[]
[]
[]
[]
["Signed: ",null,null,null,null,null,"Date:","31st January 2022"]

{"sheet":"Permit Compliance","index":7,"n_rows":74,"n_cols":15,"rows_kept":74,"cut":false,"hidden":false,"merged":[[7,0,7,1],[7,2,7,8],[8,0,8,1],[8,2,8,4],[8,5,8,8],[8,11,17,14],[9,0,9,1],[9,2,9,4],[9,5,9,8],[10,0,10,1],[10,2,10,4],[10,5,10,8],[11,0,11,1],[11,2,11,4],[11,5,11,8],[12,0,12,1],[12,2,12,4],[12,5,12,8],[13,0,13,1],[13,2,13,4],[13,5,13,8],[14,0,14,1],[14,2,14,4],[14,5,14,8],[15,0,15,1],[15,2,15,4],[15,5,15,8],[16,0,16,1],[16,2,16,4],[16,5,16,8],[18,0,18,10],[19,1,19,3],[19,4,19,6],[19,7,19,9],[20,1,20,3],[20,4,20,6],[20,7,20,9],[21,1,21,3],[21,4,21,6],[21,7,21,9],[22,1,22,3],[22,4,22,6],[22,7,22,9],[23,1,23,3],[23,4,23,6],[23,7,23,9],[24,1,24,3],[24,4,24,6],[24,7,24,9],[25,1,25,3],[25,4,25,6],[25,7,25,9],[26,1,26,3],[26,4,26,6],[26,7,26,9],[27,1,27,3],[27,4,27,6],[27,7,27,8],[28,1,28,3],[28,4,28,6],[28,7,28,8],[29,1,29,3],[29,4,29,6],[29,7,29,9],[30,1,30,3],[30,4,30,6],[30,7,30,9],[73,0,82,3],[73,4,73,8],[31,1,31,3],[31,4,31,6],[31,7,31,9],[33,0,33,10],[34,1,34,3],[34,4,34,6],[34,7,34,9]]}
[{"$f":"+'Cover Page'!$B$29","v":"Annual Performance Report 2021"},null,null,null,{"$f":"+'Cover Page'!$B$33","v":"Kent Enviropower Limited"}]
[]
["Summary of Permit Compliance"]
[]
["Compliance with permit limits for continuously monitored pollutants"]
[]
["The plant met its emission limits as shown in the table below:"]
["Substance",null,"Percentage time compliant during operation",null,null,null,null,null,null,null,null,"Notes:"]
[null,null,"Half-hourly limit",null,null,"Daily limit",null,null,null,null,null,"Report to 2 decimal places, i.e. xx.xx%\n\nPlease provide a brief summary of each notification or non-compliance in the table (rather than just referring to notifications that were sent to the Regulator).  \n\n"]
["Particulates",null,0.99990000000000001,null,null,1]
["Oxides of nitrogen",null,1,null,null,1]
["Sulphur dioxide",null,1,null,null,1]
["Carbon monoxide",null,0.99990000000000001,null,null,1]
["Total organic carbon",null,1,null,null,1]
["Hydrogen chloride",null,0.99990000000000001,null,null,1]
["Ammonia",null,1,null,null,1]
[]
[]
["Summary of any notifications or non-compliances under the permit"]
["Date","Summary of notification or non-compliance [including Line/Reference]",null,null,"Reason ",null,null,"Measures taken to prevent reoccurrence"]
["2021-01-19","19 Abnormal Operation Line 1  Dust",null,null,"Bag failure",null,null,"Bags are currently being investigated internally and with the O&M contractor to determine cause.",null,null,null,null,null,null," 95% of 10-min averages"]
["2021-03-09","81 Schedule 1 Line 2 CO 2 x 10 min.",null,null,"Lack of control of Secondary Air",null,null,"Investigate the SA Function group after an overpressure and during purging or similar situations. Following the above investigation:-Review procedure ALT-G23-WI-1310 ‘actions in the event of a CO exceedance’ and train out any findings to the Operational team"]
["2021-03-26","82 Schedule 1 FE bunker fire",null,null,"Unknown ignition source - The most probable cause was Suspected to be a lithium Ion battery or flammable substance in the bunker",null,null,"No action required - The deluge system was activated and extinguished the fire"]
["2021-04-21","20 Abnormal Operation Line 1  Dust",null,null,"Bag failure",null,null,"Root cause analysis carried out and identified split bags caused the elevated dust. Bags replaced."]
["2021-05-15","21 Abnormal Operation Line 1  Dust",null,null,"Bag failure",null,null,"As above"]
["2021-05-19","83 Schedule 1 Roof Louvres",null,null,"Louvre brackets found broken and prevented them from closing.",null,null,"Replace broken brackets.Review current ‘planned maintenance’ routines to identify if current checks require more frequency"]
["2021-08-30","84 Schedule 1 Line 2 Dust half hour",null,null,"Circoclean reactor was fully blocked",null,null,"Investigate the CC operation and maintenance, and review recent blockage. Investigate the feasibility of a filtering material on the recirculation damper"]
["2021-09-06","22 Abnormal Operation Line 3 Nox",null,null,"Non-return valve failure causing a disturbance of abatement plant operating effectively.",null,null,"No additional actions are considered necessary."]
["2021-09-19","23 Abnormal Operation Line 1 Dust",null,null,"Large amount of ash completely blocked the gas path through the cicoclean reactor",null,null,"A review of the circoclean reactor is currently in progress to reduce any reacurrence."]
["2021-09-24","24 Abnormal Operation Line 3 NOx",null,null,"1.\tBed temperatures were low\n2.\tWater flow to SNCR system must be continuous 150kg/h. This was not at the moment of the exceedance,  which caused the blockage of two from four lances",null,null,"The non return valves are currently part of the abatement plant routine weekly checks. The SNCR system is checked daily and at the time of the check no issues were identified with the system. Copy of day check sheet shown below"]
["2021-09-25","87 Schedule 1 Line 1 Ash leak ",null,null,"Ash hung up (blocked) in residue hopper void. This suddenly released and free flowed.\nNote: All the ash flowed into a bunded area and was cleaned up. No ash left the facility.",null,null,"Reduce residue hopper levels in normal operation\nEmpty residue hoppers in a controlled manner during a line shutdown\nAssess risks and review loop to allow discharges to the silo when the ID fan is off\n"]
["2021-11-21","88 Schedule 1 Line 2 HCl half hour",null,null,"Lime dosing function group in the DCS failed to run due to a roller valve showing >10% \n(The valve had stuck partially open by. Most likely due to ash restricting movement of the valve)",null,null,"Review planned maintenance and scope frequency in roller valves. Put in place routine functional checks & 6 monthly calibrations"]
[]
["Summary of any complaints received and actions to taken to resolve them."]
["Date","Summary of complaint [including Line/Reference]",null,null,"Reason *",null,null,"Measures taken to prevent reoccurrence"]
["2021-01-04T23:30:00","Noise",null,null,"Substantiated",null,"Operator","** see below"]
["2021-01-05T07:50:00","Queues",null,null,"Substantiated",null,"Operator","** see below"]
["2021-02-01T10:27:00","Odour",null,null,"Substantiated",null,"Operator","** see below"]
["2021-03-16T19:00:00","Odour",null,null,"Substantiated",null,"Operator","** see below"]
["2021-04-05T11:20:00","Odour",null,null,"Substantiated",null,"Operator","** see below"]
["2021-04-07T09:30:00","Odour",null,null,"Substantiated",null,"Operator","** see below"]
["2021-04-29T08:20:00","Odour",null,null,"Substantiated",null,"Operator","** see below"]
["2021-04-30T07:30:00","Odour",null,null,"Substantiated",null,"Operator","** see below"]
["2021-05-01T14:00:00","Odour",null,null,"Substantiated",null,"Operator","** see below"]
["2021-05-17T08:28:00","Odour",null,null,"Substantiated",null,"Operator","** see below"]
["2021-05-17T10:00:00","Foul sewer overflowing onto soil",null,null,"Substantiated",null,"Operator","** see below"]
["2021-05-19T08:00:00","Odour",null,null,"Substantiated",null,"Operator","** see below"]
["2021-06-02T09:00:00","Flies",null,null,"Not Substantiated",null,"Operator","N/A"]
["2021-06-02T09:00:00","Flies",null,null,"Not Substantiated",null,"Operator","N/A"]
["2021-06-02T09:00:00","Flies",null,null,"Not Substantiated",null,"Operator","N/A"]
["2021-06-02T09:00:00","Flies",null,null,"Not Substantiated",null,"Operator","N/A"]
["2021-06-02T09:00:00","Flies",null,null,"Not Substantiated",null,"Operator","N/A"]
["2021-06-02T09:00:00","Flies",null,null,"Not Substantiated",null,"Operator","N/A"]
["2021-06-02T09:00:00","Flies",null,null,"Not Substantiated",null,"Operator","N/A"]
["2021-06-02T09:00:00","Flies",null,null,"Not Substantiated",null,"Operator","N/A"]
["2021-06-02T09:00:00","Flies",null,null,"Not Substantiated",null,"Operator","N/A"]
["2021-06-02T09:00:00","Flies",null,null,"Not Substantiated",null,"Operator","N/A"]
["2021-06-02T12:57:00","Flies",null,null,"Not Substantiated",null,"Operator","N/A"]
["2021-06-03T09:00:00","Odour",null,null,"Substantiated",null,"Operator","** see below"]
["2021-06-11T14:00:00","Flies",null,null,"Not Substantiated",null,"Operator","N/A"]
["2021-06-12T13:30:00","Odour",null,null,"Substantiated",null,"Operator","** see below"]
["2021-06-14T07:30:00","Odour",null,null,"Not Substantiated",null,"Operator","N/A"]
["2021-06-14T16:00:00","Flies",null,null,"Not Substantiated",null,"Operator","N/A"]
["2021-06-14T16:00:00","Flies",null,null,"Not Substantiated",null,"Operator","N/A"]
["2021-06-14T16:00:00","Flies",null,null,"Not Substantiated",null,"Operator","N/A"]
["2021-06-23T15:50:00","Odour",null,null,"Substantiated",null,"Operator","** see below"]
["2021-07-14T10:34:00","Odour",null,null,"Substantiated",null,"Operator","** see below"]
["2021-07-29T11:50:00","Odour",null,null,"Substantiated",null,"Operator","** see below"]
["2021-09-29T09:30:00","Odour",null,null,"Substantiated",null,"Operator","** see below"]
["2021-10-11T08:00:00","Odour",null,null,"Substantiated",null,"Operator","** see below"]
["2021-11-25T15:00:00","Odour",null,null,"Substantiated",null,"Operator","** see below"]
["2021-11-28T09:35:00","Odour",null,null,"Substantiated",null,"Operator","** see below"]
["2021-12-20T10:00:00","Odour",null,null,"Not Substantiated",null,"Operator","N/A"]
["\n** Comments\n\nNOISE - This was a one off event when the ACC (Air Cooled Condensor) tripped and a release of steam generated noise for a brief period.\n\nODOUR - The majority of odour complaints have been justified on wind direction. A reportable event occured when it was found that roof louvres had failed to close with the potential to cause odour. An odour survey conducted at the end of 2020 was postponed due to Covid restrictions and has now been rearranged for February 2022 to discuss potential future arrangements.",null,null,null,"* including whether substantiated by the operator or the EA"]

{"sheet":"Improvements","index":8,"n_rows":39,"n_cols":5,"rows_kept":39,"cut":false,"hidden":false,"merged":[[37,0,37,9],[38,0,47,9],[4,0,4,9],[5,0,13,9],[15,0,15,9],[16,0,24,9],[26,0,26,9],[27,0,35,9]]}
[{"$f":"+'Cover Page'!$B$29","v":"Annual Performance Report 2021"},null,null,null,{"$f":"+'Cover Page'!$B$33","v":"Kent Enviropower Limited"}]
[]
["Summary of Plant Improvements"]
[]
["Summary of any efficiency improvements that have been completed within the year."]
["\nAll of the lighting around site has been replaced with LED lighting during this year – more efficient and better coverage.\n\nMajor repairs to the ESP (electro static precipitators) on Line 1, resulting in improved efficiency – Lines 2 and 3 to follow in March.         \n                                                                                                                                                                                                                                                                                                                                                                                                                                           Optimised fuel oil usage resulting in a significant reduction.\n\nReduction in the use of Urea, as we found a long standing fault that significantly increase use."]
[]
[]
[]
[]
[]
[]
[]
[]
[]
["Summary of any permit improvement conditions that have been completed within the year and the resulting environmental benefits."]
["There have been no permit improvement conditions completed during the year."]
[]
[]
[]
[]
[]
[]
[]
[]
[]
["Summary of any changes to the plant or operating techniques which required a variation to the permit and a summary of the resulting environmental impact."]
["There have been no changes to the plant or operating techniques requiring a permit variation."]
[]
[]
[]
[]
[]
[]
[]
[]
[]
["Summary of any other improvements made to the plant or planned to be made and a summary of the resulting environmental benefits."]
["The facility completed replacing its Continuous Emission Monitoring System (CEMS) and these are now fully operational."]

{"sheet":"Public Liasion","index":9,"n_rows":29,"n_cols":5,"rows_kept":29,"cut":false,"hidden":false,"merged":[[17,0,18,1],[17,2,22,9],[19,0,20,1],[21,0,22,1],[5,0,5,1],[5,2,5,9],[6,0,7,1],[6,2,11,9],[8,0,9,1],[10,0,11,1],[12,0,13,1],[12,2,13,9],[15,0,15,9],[16,0,16,1],[16,2,16,9],[23,0,24,1],[23,2,24,9],[25,0,26,1],[25,2,26,9],[28,0,28,9]]}
[{"$f":"+'Cover Page'!$B$29","v":"Annual Performance Report 2021"},null,null,null,{"$f":"+'Cover Page'!$B$33","v":"Kent Enviropower Limited"}]
[]
["Details of Public & Stakeholder Liasion"]
[]
["Summary of events held during the reporting year."]
["Date",null,"Description"]
["2021-02-02",null,"The Facility has an active liaison group involving representatives from the following stakeholders:\n\n• Chairman - Mr Brian White\n• Environment Agency \n• 10 Local Residents \n• Councillors Walker and Hammond (TMBC members) \n• Councillors Robertson, Harwood and Daley (MBC members). Cllr Daley is also a member of KCC.\n• Councillors Homewood and Bird (KCC members)\n• Maidstone Borough Council Environmental Health, Wilcock \n• Councillors Walker and Balcombe (Aylesford Parish Council)\n• Tonbridge & Malling & Maidstone Borough Council Environmental Health \n• Kent County Council Waste Management \n• Kent Enviropower\n"]
[]
["2021-06-01"]
[]
["2021-10-05"]
[]
[]
[]
[]
["List of events planned for next year"]
["Date",null,"Description"]
["February 2022",null,"\n\n\nPlease see opposite"]
[]
["June 2022"]
[]
["October 2022"]
[]
[]
[]
[]
[]
[]
["If you wish to be involved in the public liasion programme, please contact Brian White (Chairman) - Email: drbdwhite@yahoo.co.uk"]

{"sheet":"Residue Quality","index":10,"n_rows":36,"n_cols":6,"rows_kept":36,"cut":false,"hidden":false,"merged":[[5,0,6,6],[7,0,8,6],[9,0,10,6],[12,0,12,6],[13,0,13,1],[13,2,13,6],[14,0,15,1],[14,2,15,6],[16,0,17,1],[16,2,17,6],[18,0,19,1],[18,2,19,6],[20,0,21,1],[20,2,21,6],[22,0,23,1],[22,2,23,6],[26,0,26,6],[27,0,28,1],[27,2,28,2],[27,3,27,6],[28,3,28,4],[28,5,28,6],[29,0,29,1],[29,3,29,4],[29,5,29,6],[30,0,30,1],[30,3,30,4],[30,5,30,6],[34,0,34,6],[35,0,40,6],[31,0,31,1],[31,3,31,4],[31,5,31,6],[32,0,32,1],[32,3,32,4],[32,5,32,6]]}
[{"$f":"+'Cover Page'!$B$29","v":"Annual Performance Report 2021"},null,null,null,{"$f":"+'Cover Page'!$B$33","v":"Kent Enviropower Limited"}]
[]
["Residue Quality Monitoring Requirements"]
[]
["Summary of monitoring undertaken and compliance"]
["Waste Description:  Bottom Ash\nParameter to be measured :\nTOC or LOI, Metals (Cd, Tl, Hg, Pb, Cr, Cu, Mn, Ni, As, Co, V, Sb, Zn)  and  their  compounds  and  \nthe total   soluble   fraction   of   these metals, dioxins/ furans and dioxin like PCB’s. Sampling \nand analysis as    per    Agency    ash    sampling protocol.\nFrequency:\nQuarterly      (with      the exception   of   the   total soluble   fraction   which shall   be   \nsampled   and analysed  before  the  use of   a   new   disposal   or recycling route).\nHazard assessment undertaken twice a month (24 samples a year)"]
[]
[]
[]
[]
[]
[]
["Commentary on any specific events"]
["Date & Event",null,"Description"]
["NA",null,"NA"]
[]
[]
[]
[]
[]
[]
[]
[]
[]
[]
[]
["Residue Quality Monitoring Results"]
["Parameter (unit) ",null,"Limit","Normal Operation "]
[null,null,null,"Bottom ash  ",null,"APC Residues"]
["Loss on Ignition (average %)",null,"<5%",0.83]
["Total Organic Carbon (average %)",null,"<3%",0.23]
["No. of Assessments Undertaken",null,"---","28*",null,4]
["No. of Hazardous Results",null,"---",0]
[]
["Comments :"]
["* This equates to 24 IBA hazard assessments and 4 quarterly reports."]

{"sheet":"Water","index":11,"n_rows":36,"n_cols":10,"rows_kept":36,"cut":false,"hidden":false,"merged":[[5,0,6,9],[7,0,8,9],[9,0,10,9],[12,0,12,9],[13,0,13,1],[13,2,13,9],[14,0,15,1],[14,2,19,9],[16,0,17,1],[18,0,19,1],[21,0,21,9],[22,0,22,2],[22,3,22,5],[23,0,23,2],[24,0,24,2],[24,3,24,5],[25,0,25,2],[26,0,26,2],[27,0,27,2],[28,0,28,2],[29,0,29,2],[29,3,29,5],[30,0,30,2],[30,3,30,5],[31,0,31,2],[31,3,31,5],[35,0,35,2],[35,3,35,5],[32,0,32,2],[32,3,32,5],[33,0,33,2],[33,3,33,5],[34,0,34,2],[34,3,34,5]]}
[{"$f":"+'Cover Page'!$B$29","v":"Annual Performance Report 2021"},null,null,null,{"$f":"+'Cover Page'!$B$33","v":"Kent Enviropower Limited"}]
[]
["Emissions to Water"]
[]
["Summary of monitoring undertaken and compliance"]
["Parameters for which reports shall be made, in accordance with conditions of the Consent to the Discharge of Trade Effluent issued by Southern Water, are listed below and are measured monthly. \n\nThese are not Environmental Permit limits but limits for disposal of effluent water discharged down sewage drains."]
[]
[]
[]
[]
[]
[]
["Commentary on any specific events"]
["Date & Event",null,"Description"]
["2021-02-01",null,"Feb 21 - Mar 21 - Nov 21 - High suspended solids recorded.\n\nInvestigation identified that new sample point 7.3 does not always contain enough water (non representative sample) and solids being sampled. This led to a slightly high average result. Samples are now only taken when sufficient water is available."]
[]
["2021-03-01"]
[]
["2021-11-01"]
[]
[]
["Emissions to Water / Sewer"]
["Parameter",null,null,"Monitoring Frequency",null,null,"Limit","Target","Max.","Average"]
["Arsenic",null,null,"monthly",null,null,1,1,0.01,6.6666666666666671E-3]
["COD shaken",null,null,"monthly",null,null,800,800,3880,346]
["Chromium",null,null,"monthly",null,null,1,1,0.01,6.6666666666666671E-3]
["Copper",null,null,"monthly",null,null,1,1,0.1,2.1666666666666667E-2]
["Fluoride",null,null,"monthly",null,null,2,2,0.4,0.14166666666666669]
["Lead",null,null,"monthly",null,null,1,1,0.04,1.3333333333333331E-2]
["Molybdenum",null,null,"monthly",null,null,1,1,0.04,9.166666666666665E-3]
["Nickel",null,null,"monthly",null,null,1,1,0.01,6.6666666666666671E-3]
["Selenium",null,null,"monthly",null,null,1,1,0.01,6.6666666666666671E-3]
["Suspended solids",null,null,"monthly",null,null,200,200,1725,214.5]
["Sulphate",null,null,"monthly",null,null,500,500,170,56.500833333333333]
["Zinc",null,null,"monthly",null,null,3,3,0.2,6.3333333333333339E-2]
["pH",null,null,"monthly",null,null,10,10,7.4,4.7]

{"sheet":"Air (periodic)","index":12,"n_rows":48,"n_cols":13,"rows_kept":48,"cut":false,"hidden":false,"merged":[[5,0,6,9],[5,12,8,15],[8,0,8,9],[9,0,10,1],[9,2,10,2],[9,3,10,4],[9,5,9,9],[9,12,11,15],[11,0,11,1],[11,3,11,4],[12,0,12,1],[12,3,12,4],[13,0,13,1],[13,3,13,4],[14,0,14,1],[14,3,14,4],[15,0,15,1],[15,3,15,4],[16,0,16,1],[16,3,16,4],[17,0,17,1],[17,3,17,4],[18,0,18,1],[18,3,18,4],[19,0,19,1],[19,3,19,4],[20,0,20,1],[20,3,20,4],[21,0,21,1],[21,3,21,4],[22,0,22,1],[22,3,22,4],[23,0,23,1],[23,3,23,4],[24,0,24,1],[24,3,24,4],[25,0,25,1],[25,3,25,4],[26,0,26,1],[26,3,26,4],[27,0,27,1],[27,3,27,4],[28,0,28,1],[28,3,28,4],[29,0,29,1],[29,3,29,4],[30,0,30,1],[30,3,30,4],[31,0,31,1],[31,3,31,4],[32,0,32,1],[32,3,32,4],[33,0,33,1],[33,3,33,4],[34,0,34,1],[34,3,34,4],[35,0,35,1],[35,3,35,4],[36,0,36,1],[36,3,36,4],[37,0,37,1],[37,3,37,4],[38,0,38,1],[38,3,38,4],[39,0,39,1],[39,3,39,4],[40,0,40,1],[40,3,40,4],[41,0,41,1],[41,3,41,4],[42,0,42,1],[42,3,42,4],[43,0,43,1],[43,3,43,4],[44,0,44,1],[44,3,44,4],[48,0,49,9],[45,0,45,1],[45,3,45,4],[46,0,46,1],[46,3,46,4],[47,0,47,9]]}
[{"$f":"+'Cover Page'!$B$29","v":"Annual Performance Report 2021"},null,null,null,{"$f":"+'Cover Page'!$B$33","v":"Kent Enviropower Limited"}]
[]
["Emissions to Air (periodically monitored)"]
[]
["Summary of monitoring undertaken, standards used and compliance",null,null,null,null,null,null,null,null,null,null,null,"Notes:"]
[null,null,null,null,null,null,null,null,null,null,null,null,"Template may require adjustment for any bespoke monitoring requirements of permit. "]
[]
[]
["Results of emissions to air that are periodically monitored"]
["Substance",null,"Ref. Period","Emission Limit Value",null,"Average",null,null,null,null,null,null,"User to add additional tables as necessary, depending on whether quarterly or bi-annual reporting is required for the compliance year"]
[null,null,null,null,null,"A1","A2","A3","A4","A5"]
["Total Particulate Matter",null,"1 hr","20 mg/m3",null,0.19,0.89999999999999991,0.58000000000000007]
["Ammonia",null,"1 hr","20 mg/m3",null,9.6500000000000002E-2,9.0499999999999997E-2,0.122]
["Cadmium & Thallium",null,"1 hr","0.05 mg/m3",null,1.0200000000000001E-3,1.2999999999999999E-3,1.2999999999999999E-3]
["Heavy Metals",null,"1 hr","0.5 mg/m3",null,3.85E-2,5.7000000000000002E-2,3.15E-2]
["Mercury",null,"1 hr","0.05 mg/m3",null,1.4649999999999999E-3,1E-3,8.7500000000000002E-4]
["Sulphur Dioxide",null,"1 hr","200 mg/m3",null,0.32500000000000001,2.6500000000000003E-2,4.5499999999999999E-2]
["Hydrogen Chloride",null,"1 hr","30 mg/m3",null,2.8,6.95,8.1]
["Hydrogen Fluoride",null,"1 hr","1 mg/m3",null,4.7500000000000001E-2,6.6000000000000003E-2,7.4499999999999997E-2]
["Total VOCs (as Carbon)",null,"4 hrs","20 mg/m3",null,4.2,0.49,0.42]
["Oxides of Nitrogen (as NO2)",null,"4 hrs","400 mg/m3",null,219.5,172.5,185.5]
["Carbon Monoxide",null,"4 hrs","150 mg/m3",null,3.35,3.4,2.7850000000000001]
["Nitrous Oxide",null,"4 hrs","None set mg/m3",null,0.83499999999999996,0.53,0.625]
["Dioxins / furans (I-TEQ)6",null,"6 hrs","0.1 µg/m3",null,6.9499999999999996E-3,2.1000000000000001E-2,3.15E-2]
["Dioxins / furans (WHO-TEQ Humans / Mammals) 6",null,"6 hrs","None set µg/m3",null,6.8000000000000005E-3,0.02,3.15E-2]
["Dioxins / furans (WHO-TEQ Fish) 6",null,"6 hrs","None set µg/m3",null,6.0499999999999998E-3,1.7500000000000002E-2,2.8000000000000001E-2]
["Dioxins / furans (WHO-TEQ Birds) 6",null,"6 hrs","None set µg/m3",null,7.3499999999999998E-3,2.2499999999999999E-2,3.6000000000000004E-2]
["Dioxin-like PCBs (WHO-TEQ Humans / Mammals)6",null,"6 hrs","None set µg/m3",null,4.7999999999999996E-4,1.065E-3,1.5499999999999999E-3]
["Dioxin-like PCBs (WHO-TEQ Fish)6",null,"6 hrs","None set µg/m3",null,2.1000000000000002E-5,4.6E-5,6.9500000000000009E-5]
["Dioxin-like PCBs (WHO-TEQ Birds)6",null,"6 hrs","None set µg/m3",null,9.4500000000000009E-4,2.1000000000000003E-3,3.0499999999999998E-3]
["PAHs (DEFRA 16)",null,"6 hrs","None set µg/m3",null,0.45999999999999996,0.95499999999999996,0.23150000000000001]
["Anthanthrene",null,"6 hrs","None set µg/m3",null,4.95E-4,7.2499999999999995E-4,5.5000000000000003E-4]
["Benzo{a}anthracene",null,"6 hrs","None set µg/m3",null,1.905E-3,2.0249999999999999E-3,5.5000000000000003E-4]
["Benzo[b]fluoranthene",null,"6 hrs","None set µg/m3",null,6.6049999999999998E-3,7.1250000000000003E-3,5.5000000000000003E-4]
["Benzo[k]fluoranthene",null,"6 hrs","None set µg/m3",null,1.555E-3,7.2499999999999995E-4,5.5000000000000003E-4]
["Benzo[b]naph(2,1-d}thiophene",null,"6 hrs","None set µg/m3",null,8.6049999999999998E-3,5.7749999999999998E-3,1.5099999999999998E-3]
["Benzo[c]phenanthrene",null,"6 hrs","None set µg/m3",null,1.6050000000000001E-3,7.2499999999999995E-4,5.5000000000000003E-4]
["Benzo[ghi]perylene",null,"6 hrs","None set µg/m3",null,2.6550000000000002E-3,1.9625E-2,5.5000000000000003E-4]
["Benzo[a]pyrene",null,"6 hrs","None set µg/m3",null,4.95E-4,5.1250000000000002E-3,5.5000000000000003E-4]
["Cholanthrene",null,"6 hrs","None set µg/m3",null,4.95E-4,7.2499999999999995E-4,5.5000000000000003E-4]
["Chrysene",null,"6 hrs","None set µg/m3",null,6.6049999999999998E-3,5.2550000000000001E-3,5.5000000000000003E-4]
["Cyclopenta(cd)pyrene",null,"6 hrs","None set µg/m3",null,4.95E-4,1.9125E-2,5.5000000000000003E-4]
["Dibenzo[ah]anthracene",null,"6 hrs","None set µg/m3",null,4.95E-4,7.2499999999999995E-4,5.5000000000000003E-4]
["Dibenzo[ai]pyrene",null,"6 hrs","None set µg/m3",null,4.95E-4,7.2499999999999995E-4,5.5000000000000003E-4]
["Fluoranthene",null,"6 hrs","None set µg/m3",null,3.3250000000000002E-2,0.45880000000000004,5.8999999999999999E-3]
["Indeno[1,2,3-cd]pyrene",null,"6 hrs","None set µg/m3",null,4.95E-4,5.5999999999999999E-3,5.5000000000000003E-4]
["Naphthalene",null,"6 hrs","None set µg/m3",null,0.27250000000000002,0.25700000000000001,5.8999999999999997E-2]
["Comments :"]

{"sheet":"Air (CEMS)","index":13,"n_rows":29,"n_cols":16,"rows_kept":29,"cut":false,"hidden":false,"merged":[[13,0,14,0],[27,0,27,12],[29,0,30,12],[5,0,6,12],[7,0,8,12],[10,0,10,12],[11,0,12,0],[11,1,12,1],[11,2,12,2],[11,3,11,4],[11,5,11,6],[11,7,11,8],[11,9,11,10],[11,11,11,12]]}
[{"$f":"+'Cover Page'!$B$29","v":"Annual Performance Report 2021"},null,null,null,null,null,null,null,{"$f":"+'Cover Page'!$B$33","v":"Kent Enviropower Limited"}]
[]
["Emissions to Air (continously monitored)"]
[null,null,null,null,null,null,null,null,null,null,null,null,null,null,null,"Notes:"]
["Summary of monitoring undertaken, standards used and compliance",null,null,null,null,null,null,null,null,null,null,null,null,null,null,"Template may require adjustment for any bespoke monitoring requirements of permit"]
[null,null,null,null,null,null,null,null,null,null,null,null,null,null,null,"Report to 2 decimal places, i.e. xx.xx%"]
[]
[]
[]
[]
["Results of emissions to air that are continuously monitored (maximum and average values for each line)"]
["Substance","Reference Period","Emission Limit Value","A1",null,"A2",null,"A3",null,"A4",null,"A5"]
[null,null,null,"Max.","Avg.","Max.","Avg.","Max.","Avg.","Max.","Avg.","Max.","Avg."]
["Oxides of nitrogen","Daily mean","200 mg/m3 ",186,162,186,159,203,152]
[null,"½ hourly mean","400 mg/m3 ",394,162,267,159,440,152]
["Particulates","Daily mean","10 mg/m3",6.3,0.49,135,0.53,7.6,1.97]
[null,"½ hourly mean","30 mg/m3 ",135,0.53,33.200000000000003,2,14.6,1.98]
["Total Organic Carbon ","Daily mean","10 mg/m3 ",5.79,0.92,3.77,0.43,3.66,0.61]
[null,"97%ile in rolling year","10 mg/m3 ",280,1.02,577,0.54,230,0.66]
["Hydrogen chloride ","Daily mean","10 mg/m3 ",9.4,3.5,9.6,5.25,10,5.26]
[null,"½ hourly mean","60 mg/m3 ",32,4,60,5.21,36,5.3]
["Sulphur dioxide","Daily mean","50 mg/m3 ",7.2,0.9,11,0.87,2.5,0.36]
[null,"½ hourly mean","200 mg/m3 ",164,0.96,170,0.92,111,0.36]
["Carbon monoxide ","Daily mean","50 mg/m3 ",46.4,9.1,38,6,24,7.4]
[null,"½ hourly mean *","100 mg/m3 *","N/A","N/A","N/A","N/A","N/A","N/A"]
[null,"95%ile 10-min avg *","150 mg/m3 *",6371,9.75,4494,7.3,1970,7.85]
[" Ammonia","Daily mean","10 mg/m3 ",1.7,0.46,0.87,0.19,1,0.46]
["* = delete or amend as appropriate"]
["Comments :"]

{"sheet":"HCl","index":14,"n_rows":79,"n_cols":17,"rows_kept":79,"cut":false,"hidden":false,"merged":[[3,16,7,18],[4,1,4,3],[4,4,4,6],[4,9,4,14],[6,9,18,9],[9,16,11,18],[12,16,15,18],[66,9,78,9],[21,9,33,9],[36,9,48,9],[47,0,47,6],[48,0,51,6],[51,9,63,9]]}
[{"$f":"+'Cover Page'!$B$29","v":"Annual Performance Report 2021"},null,null,null,{"$f":"+'Cover Page'!$B$33","v":"Kent Enviropower Limited"}]
[]
["Monitoring of Hydrogen Chloride emissions",null,null,"Whole Installation",null,null,"See  Notes in Cell Q3",null,null,{"$f":"+A3","v":"Monitoring of Hydrogen Chloride emissions"},null,null,null,"Per Combustion Line",null,null,"Notes:"]
[null,null,null,null,null,null,null,null,null,null,null,null,null,null,null,null,"User to add logic to complete Whole installation, Table A5:G18. From the data in Per Combustion Line, Table J6:O79, subject to No. of lines installed"]
["mg/Nm3","1/2 Hourly Reference Periods",null,null,"Daily Reference Periods"]
[{"$f":"+'Cover Page'!C39","v":2021},"1/2 hourly HCl ELV","Monthly 1/2 hourly mean","Highest 1/2 hourly maximum","Daily HCl ELV","Monthly daily mean","Highest daily maximum",null,null,{"$f":"+A6","v":2021},"mg/Nm3","Monthly 1/2 hourly mean","Monthly 1/2 hourly maximum","Monthly daily mean","Monthly daily maximum"]
["Jan",60,2,36.5,10,1.8,6.4,null,null,"A1","Jan",2.1,17.600000000000001,1.6,6.4]
["Feb",60,2,52.8,10,1.96,4.7,null,null,null,"Feb",1.6,18.2,1.5,3.5]
["Mar",60,4.63,23.6,10,4.7300000000000004,8.5,null,null,null,"Mar",4,19.399999999999999,3.9,6.4,null,"Whole Installation table A5:G18:"]
["Apr",60,3.63,39.299999999999997,10,3.63,7.7,null,null,null,"Apr",3.2,24.2,3.3,6.9,null,"Mean: for 1/2 hourly and daily periods calculate mean of values across all operational combustion lines for the month"]
["May",60,2.93,28.4,10,2.93,8,null,null,null,"May",1.6,15.2,1.6,2.6]
["Jun",60,5.86,29.3,10,5.86,9.6,null,null,null,"Jun",4,20.2,3.9,6]
["Jul",60,6.03,32.700000000000003,10,6.06,10,null,null,null,"Jul",2.9,16.2,3,5.5,null,"Maximum: for 1/2 hourly and daily periods use the highest value across all operational combustion lines for the month"]
["Aug",60,6.9,49.3,10,7.03,9.9,null,null,null,"Aug",5.5,28.9,5.4,9.4]
["Sep",60,5.2,47.2,10,4.9000000000000004,9.1999999999999993,null,null,null,"Sep",4.0999999999999996,29.4,3.5,6.7]
["Oct",60,6.1,35.700000000000003,10,6.1,8.1,null,null,null,"Oct",5.6,31.9,5.7,8.1]
["Nov",60,5.3,60.3,10,5.3,8.3000000000000007,null,null,null,"Nov",4.4000000000000004,21.8,4.4000000000000004,7.9]
["Dec",60,5.7,31.8,10,5.7,9.4,null,null,null,"Dec",4.8,29,4.7,9.4]
[null,null,null,null,null,null,null,null,null,null,"Annual",{"$f":"AVERAGE(L7:L18)","v":3.65},{"$f":"MAX(M7:M18)","v":31.9},{"$f":"AVERAGE(N7:N18)","v":3.5416666666666674},{"$f":"MAX(O7:O18)","v":9.4}]
[]
[null,null,null,null,null,null,null,null,null,{"$f":"+A6","v":2021},"mg/Nm3","Monthly 1/2 hourly mean","Monthly 1/2 hourly maximum","Monthly daily mean","Monthly daily maximum"]
[null,null,null,null,null,null,null,null,null,"A2","Jan",1.4,18.8,1.4,3.3]
[null,null,null,null,null,null,null,null,null,null,"Feb",1.8,52.8,1.8,4]
[null,null,null,null,null,null,null,null,null,null,"Mar",5.5,23.6,5.9,8.5]
[null,null,null,null,null,null,null,null,null,null,"Apr",4.5999999999999996,39.299999999999997,4.5999999999999996,7.7]
[null,null,null,null,null,null,null,null,null,null,"May",3.7,28.4,3.7,8]
[null,null,null,null,null,null,null,null,null,null,"Jun",6.7,29.3,6.8,9.6]
[null,null,null,null,null,null,null,null,null,null,"Jul",7.5,32.700000000000003,7.5,9.5]
[null,null,null,null,null,null,null,null,null,null,"Aug",7.5,49.3,7.6,9.6]
[null,null,null,null,null,null,null,null,null,null,"Sep",5.6,47.2,5.4,7.4]
[null,null,null,null,null,null,null,null,null,null,"Oct",6.1,35.700000000000003,6.1,7.8]
[null,null,null,null,null,null,null,null,null,null,"Nov",6,60.3,6.1,8.3000000000000007]
[null,null,null,null,null,null,null,null,null,null,"Dec",6.2,23.3,6.2,7.8]
[null,null,null,null,null,null,null,null,null,null,"Annual",{"$f":"AVERAGE(L22:L33)","v":5.2166666666666677},{"$f":"MAX(M22:M33)","v":60.3},{"$f":"AVERAGE(N22:N33)","v":5.2583333333333337},{"$f":"MAX(O22:O33)","v":9.6}]
[]
[null,null,null,null,null,null,null,null,null,{"$f":"+A6","v":2021},"mg/Nm3","Monthly 1/2 hourly mean","Monthly 1/2 hourly maximum","Monthly daily mean","Monthly daily maximum"]
[null,null,null,null,null,null,null,null,null,"A3","Jan",2.5,36.5,2.4,5.0999999999999996]
[null,null,null,null,null,null,null,null,null,null,"Feb",2.6,27.9,2.6,4.7]
[null,null,null,null,null,null,null,null,null,null,"Mar",4.4000000000000004,23.5,4.4000000000000004,7]
[null,null,null,null,null,null,null,null,null,null,"Apr",3.1,11.5,3,4.5999999999999996]
[null,null,null,null,null,null,null,null,null,null,"May",3.5,10.5,3.5,7.2]
[null,null,null,null,null,null,null,null,null,null,"Jun",6.9,21.3,6.9,9.1]
[null,null,null,null,null,null,null,null,null,null,"Jul",7.7,28.1,7.7,10]
[null,null,null,null,null,null,null,null,null,null,"Aug",7.9,25.5,8.1,9.9]
[null,null,null,null,null,null,null,null,null,null,"Sep",6,24.8,5.9,9.1999999999999993]
[null,null,null,null,null,null,null,null,null,null,"Oct",6.7,15.1,6.7,8]
[null,null,null,null,null,null,null,null,null,null,"Nov",5.6,19.100000000000001,5.6,8.1999999999999993]
["Comments :",null,null,null,null,null,null,null,null,null,"Dec",6.3,31.8,6.3,8.3000000000000007]
[null,null,null,null,null,null,null,null,null,null,"Annual",{"$f":"AVERAGE(L37:L48)","v":5.2666666666666666},{"$f":"MAX(M37:M48)","v":36.5},{"$f":"AVERAGE(N37:N48)","v":5.2583333333333337},{"$f":"MAX(O37:O48)","v":10}]
[]
[null,null,null,null,null,null,null,null,null,{"$f":"+A6","v":2021},"mg/Nm3","Monthly 1/2 hourly mean","Monthly 1/2 hourly maximum","Monthly daily mean","Monthly daily maximum"]
[null,null,null,null,null,null,null,null,null,"A4","Jan"]
[null,null,null,null,null,null,null,null,null,null,"Feb"]
[null,null,null,null,null,null,null,null,null,null,"Mar"]
[null,null,null,null,null,null,null,null,null,null,"Apr"]
[null,null,null,null,null,null,null,null,null,null,"May"]
[null,null,null,null,null,null,null,null,null,null,"Jun"]
[null,null,null,null,null,null,null,null,null,null,"Jul"]
[null,null,null,null,null,null,null,null,null,null,"Aug"]
[null,null,null,null,null,null,null,null,null,null,"Sep"]
[null,null,null,null,null,null,null,null,null,null,"Oct"]
[null,null,null,null,null,null,null,null,null,null,"Nov"]
[null,null,null,null,null,null,null,null,null,null,"Dec"]
[null,null,null,null,null,null,null,null,null,null,"Annual",{"$f":"AVERAGE(L52:L63)","v":{"$error":"#DIV/0!"}},{"$f":"MAX(M52:M63)","v":0},{"$f":"AVERAGE(N52:N63)","v":{"$error":"#DIV/0!"}},{"$f":"MAX(O52:O63)","v":0}]
[]
[null,null,null,null,null,null,null,null,null,{"$f":"+A6","v":2021},"mg/Nm3","Monthly 1/2 hourly mean","Monthly 1/2 hourly maximum","Monthly daily mean","Monthly daily maximum"]
[null,null,null,null,null,null,null,null,null,"A5","Jan"]
[null,null,null,null,null,null,null,null,null,null,"Feb"]
[null,null,null,null,null,null,null,null,null,null,"Mar"]
[null,null,null,null,null,null,null,null,null,null,"Apr"]
[null,null,null,null,null,null,null,null,null,null,"May"]
[null,null,null,null,null,null,null,null,null,null,"Jun"]
[null,null,null,null,null,null,null,null,null,null,"Jul"]
[null,null,null,null,null,null,null,null,null,null,"Aug"]
[null,null,null,null,null,null,null,null,null,null,"Sep"]
[null,null,null,null,null,null,null,null,null,null,"Oct"]
[null,null,null,null,null,null,null,null,null,null,"Nov"]
[null,null,null,null,null,null,null,null,null,null,"Dec"]
[null,null,null,null,null,null,null,null,null,null,"Annual",{"$f":"AVERAGE(L67:L78)","v":{"$error":"#DIV/0!"}},{"$f":"MAX(M67:M78)","v":0},{"$f":"AVERAGE(N67:N78)","v":{"$error":"#DIV/0!"}},{"$f":"MAX(O67:O78)","v":0}]

{"sheet":"SO2","index":15,"n_rows":79,"n_cols":17,"rows_kept":79,"cut":false,"hidden":false,"merged":[[3,16,7,18],[4,1,4,3],[4,4,4,6],[4,9,4,14],[6,9,18,9],[9,16,11,18],[12,16,15,18],[66,9,78,9],[21,9,33,9],[36,9,48,9],[47,0,47,6],[48,0,51,6],[51,9,63,9]]}
[{"$f":"+'Cover Page'!$B$29","v":"Annual Performance Report 2021"},null,null,null,{"$f":"+'Cover Page'!$B$33","v":"Kent Enviropower Limited"}]
[]
["Monitoring of Sulphur dioxide emissions",null,null,"Whole Installation",null,null,"See  Notes in Cell Q3",null,null,{"$f":"+A3","v":"Monitoring of Sulphur dioxide emissions"},null,null,null,"Per Combustion Line",null,null,"Notes:"]
[null,null,null,null,null,null,null,null,null,null,null,null,null,null,null,null,"User to add logic to complete Whole installation, Table A5:G18. From the data in Per Combustion Line, Table J6:O79, subject to No. of lines installed"]
["mg/Nm3","1/2 Hourly Reference Periods",null,null,"Daily Reference Periods"]
[{"$f":"+'Cover Page'!C39","v":2021},"1/2 hourly SO2 ELV","Monthly 1/2 hourly mean","Highest 1/2 hourly maximum","Daily SO2 ELV","Monthly daily mean","Highest daily maximum",null,null,{"$f":"+A6","v":2021},"mg/Nm3","Monthly 1/2 hourly mean","Monthly 1/2 hourly maximum","Monthly daily mean","Monthly daily maximum"]
["Jan",200,0.63,56.2,50,0.6,3.5,null,null,"A1","Jan",0.8,56.2,0.7,3.5]
["Feb",200,1.76,91.3,50,1.5,11.1,null,null,null,"Feb",2.8,61.4,2.2999999999999998,7.2]
["Mar",200,0.63,95.1,50,0.6,2.8,null,null,null,"Mar",0.4,23.3,0.4,1.2,null,"Whole Installation table A5:G18:"]
["Apr",200,0.46,110.8,50,0.43,2.5,null,null,null,"Apr",0.4,45.2,0.3,1,null,"Mean: for 1/2 hourly and daily periods calculate mean of values across all operational combustion lines for the month"]
["May",200,1.03,56,50,1,3.9,null,null,null,"May",1.4,23.6,1.5,2.7]
["Jun",200,1.23,169.8,50,1.2,4.0999999999999996,null,null,null,"Jun",2.2000000000000002,57.9,2.1,3.4]
["Jul",200,0.63,32.1,50,0.6,1.9,null,null,null,"Jul",0.5,31.7,0.5,1.3,null,"Maximum: for 1/2 hourly and daily periods use the highest value across all operational combustion lines for the month"]
["Aug",200,0.5,53.2,50,0.5,1.6,null,null,null,"Aug",0.4,26,0.4,1.1000000000000001]
["Sep",200,0.43,61.1,50,0.43,1.7,null,null,null,"Sep",0.5,61.1,0.5,1.7]
["Oct",200,0.76,36.700000000000003,50,0.76,2.1,null,null,null,"Oct",1.3,36.700000000000003,1.3,2.1]
["Nov",200,0.53,164.1,50,0.53,3.9,null,null,null,"Nov",0.6,164.1,0.6,3.9]
["Dec",200,0.4,49.3,50,0.4,1.5,null,null,null,"Dec",0.3,27,0.3,0.7]
[null,null,null,null,null,null,null,null,null,null,"Annual",{"$f":"AVERAGE(L7:L18)","v":0.96666666666666679},{"$f":"MAX(M7:M18)","v":164.1},{"$f":"AVERAGE(N7:N18)","v":0.90833333333333333},{"$f":"MAX(O7:O18)","v":7.2}]
[]
[null,null,null,null,null,null,null,null,null,{"$f":"+A6","v":2021},"mg/Nm3","Monthly 1/2 hourly mean","Monthly 1/2 hourly maximum","Monthly daily mean","Monthly daily maximum"]
[null,null,null,null,null,null,null,null,null,"A2","Jan",0.8,19.8,0.8,3]
[null,null,null,null,null,null,null,null,null,null,"Feb",2.2000000000000002,91.3,1.9,11.1]
[null,null,null,null,null,null,null,null,null,null,"Mar",1.2,95.1,1.1000000000000001,6]
[null,null,null,null,null,null,null,null,null,null,"Apr",0.6,23.4,0.6,1.3]
[null,null,null,null,null,null,null,null,null,null,"May",1.4,56,1.3,3.9]
[null,null,null,null,null,null,null,null,null,null,"Jun",1.1000000000000001,169.8,1.1000000000000001,4.0999999999999996]
[null,null,null,null,null,null,null,null,null,null,"Jul",0.9,32.1,0.8,1.9]
[null,null,null,null,null,null,null,null,null,null,"Aug",0.6,53.2,0.6,1.6]
[null,null,null,null,null,null,null,null,null,null,"Sep",0.5,33.4,0.5,1.1000000000000001]
[null,null,null,null,null,null,null,null,null,null,"Oct",0.6,36.200000000000003,0.6,1.3]
[null,null,null,null,null,null,null,null,null,null,"Nov",0.6,12.2,0.6,1.4]
[null,null,null,null,null,null,null,null,null,null,"Dec",0.6,49.3,0.6,1.5]
[null,null,null,null,null,null,null,null,null,null,"Annual",{"$f":"AVERAGE(L22:L33)","v":0.92499999999999982},{"$f":"MAX(M22:M33)","v":169.8},{"$f":"AVERAGE(N22:N33)","v":0.875},{"$f":"MAX(O22:O33)","v":11.1}]
[]
[null,null,null,null,null,null,null,null,null,{"$f":"+A6","v":2021},"mg/Nm3","Monthly 1/2 hourly mean","Monthly 1/2 hourly maximum","Monthly daily mean","Monthly daily maximum"]
[null,null,null,null,null,null,null,null,null,"A3","Jan",0.3,29.7,0.3,0.5]
[null,null,null,null,null,null,null,null,null,null,"Feb",0.3,20.3,0.3,0.8]
[null,null,null,null,null,null,null,null,null,null,"Mar",0.3,22.4,0.3,1.3]
[null,null,null,null,null,null,null,null,null,null,"Apr",0.4,110.8,0.4,2.5]
[null,null,null,null,null,null,null,null,null,null,"May",0.3,14.2,0.2,0.6]
[null,null,null,null,null,null,null,null,null,null,"Jun",0.4,20.2,0.4,1.3]
[null,null,null,null,null,null,null,null,null,null,"Jul",0.5,23.5,0.5,1.3]
[null,null,null,null,null,null,null,null,null,null,"Aug",0.5,28.2,0.5,1.1000000000000001]
[null,null,null,null,null,null,null,null,null,null,"Sep",0.3,23.4,0.3,0.8]
[null,null,null,null,null,null,null,null,null,null,"Oct",0.4,34.799999999999997,0.4,1.2]
[null,null,null,null,null,null,null,null,null,null,"Nov",0.4,53.1,0.4,1.2]
["Comments :",null,null,null,null,null,null,null,null,null,"Dec",0.3,24.2,0.3,1]
[null,null,null,null,null,null,null,null,null,null,"Annual",{"$f":"AVERAGE(L37:L48)","v":0.36666666666666664},{"$f":"MAX(M37:M48)","v":110.8},{"$f":"AVERAGE(N37:N48)","v":0.35833333333333334},{"$f":"MAX(O37:O48)","v":2.5}]
[]
[null,null,null,null,null,null,null,null,null,{"$f":"+A6","v":2021},"mg/Nm3","Monthly 1/2 hourly mean","Monthly 1/2 hourly maximum","Monthly daily mean","Monthly daily maximum"]
[null,null,null,null,null,null,null,null,null,"A4","Jan"]
[null,null,null,null,null,null,null,null,null,null,"Feb"]
[null,null,null,null,null,null,null,null,null,null,"Mar"]
[null,null,null,null,null,null,null,null,null,null,"Apr"]
[null,null,null,null,null,null,null,null,null,null,"May"]
[null,null,null,null,null,null,null,null,null,null,"Jun"]
[null,null,null,null,null,null,null,null,null,null,"Jul"]
[null,null,null,null,null,null,null,null,null,null,"Aug"]
[null,null,null,null,null,null,null,null,null,null,"Sep"]
[null,null,null,null,null,null,null,null,null,null,"Oct"]
[null,null,null,null,null,null,null,null,null,null,"Nov"]
[null,null,null,null,null,null,null,null,null,null,"Dec"]
[null,null,null,null,null,null,null,null,null,null,"Annual",{"$f":"AVERAGE(L52:L63)","v":{"$error":"#DIV/0!"}},{"$f":"MAX(M52:M63)","v":0},{"$f":"AVERAGE(N52:N63)","v":{"$error":"#DIV/0!"}},{"$f":"MAX(O52:O63)","v":0}]
[]
[null,null,null,null,null,null,null,null,null,{"$f":"+A6","v":2021},"mg/Nm3","Monthly 1/2 hourly mean","Monthly 1/2 hourly maximum","Monthly daily mean","Monthly daily maximum"]
[null,null,null,null,null,null,null,null,null,"A5","Jan"]
[null,null,null,null,null,null,null,null,null,null,"Feb"]
[null,null,null,null,null,null,null,null,null,null,"Mar"]
[null,null,null,null,null,null,null,null,null,null,"Apr"]
[null,null,null,null,null,null,null,null,null,null,"May"]
[null,null,null,null,null,null,null,null,null,null,"Jun"]
[null,null,null,null,null,null,null,null,null,null,"Jul"]
[null,null,null,null,null,null,null,null,null,null,"Aug"]
[null,null,null,null,null,null,null,null,null,null,"Sep"]
[null,null,null,null,null,null,null,null,null,null,"Oct"]
[null,null,null,null,null,null,null,null,null,null,"Nov"]
[null,null,null,null,null,null,null,null,null,null,"Dec"]
[null,null,null,null,null,null,null,null,null,null,"Annual",{"$f":"AVERAGE(L67:L78)","v":{"$error":"#DIV/0!"}},{"$f":"MAX(M67:M78)","v":0},{"$f":"AVERAGE(N67:N78)","v":{"$error":"#DIV/0!"}},{"$f":"MAX(O67:O78)","v":0}]

{"sheet":"NOx","index":16,"n_rows":79,"n_cols":17,"rows_kept":79,"cut":false,"hidden":false,"merged":[[3,16,7,18],[4,1,4,3],[4,4,4,6],[4,9,4,14],[6,9,18,9],[9,16,11,18],[12,16,15,18],[66,9,78,9],[21,9,33,9],[36,9,48,9],[47,0,47,6],[48,0,51,6],[51,9,63,9]]}
[{"$f":"+'Cover Page'!$B$29","v":"Annual Performance Report 2021"},null,null,null,{"$f":"+'Cover Page'!$B$33","v":"Kent Enviropower Limited"}]
[]
["Monitoring of Oxides of Nitrogen emissions",null,null,"Whole Installation",null,null,"See  Notes in Cell Q3",null,null,{"$f":"+A3","v":"Monitoring of Oxides of Nitrogen emissions"},null,null,null,"Per Combustion Line",null,null,"Notes:"]
[null,null,null,null,null,null,null,null,null,null,null,null,null,null,null,null,"User to add logic to complete Whole installation, Table A5:G18. From the data in Per Combustion Line, Table J6:O79, subject to No. of lines installed"]
["mg/Nm3","1/2 Hourly Reference Periods",null,null,"Daily Reference Periods"]
[{"$f":"+'Cover Page'!C39","v":2021},"1/2 hourly NOx ELV","Monthly 1/2 hourly mean","Highest 1/2 hourly maximum","Daily NOx ELV","Monthly daily mean","Highest daily maximum",null,null,{"$f":"+A6","v":2021},"mg/Nm3","Monthly 1/2 hourly mean","Monthly 1/2 hourly maximum","Monthly daily mean","Monthly daily maximum"]
["Jan",400,147.30000000000001,266,200,147,182,null,null,"A1","Jan",168,266,167,182]
["Feb",400,144.6,344,200,144,183,null,null,null,"Feb",161,344,158,183]
["Mar",400,153,269,200,153.30000000000001,183,null,null,null,"Mar",168,269,167,183,null,"Whole Installation table A5:G18:"]
["Apr",400,151.30000000000001,275,200,151,183,null,null,null,"Apr",164,275,163,183,null,"Mean: for 1/2 hourly and daily periods calculate mean of values across all operational combustion lines for the month"]
["May",400,157.30000000000001,352,200,156.6,186,null,null,null,"May",173,352,172,186]
["Jun",400,163.30000000000001,267,200,163.6,186,null,null,null,"Jun",174,258,175,185]
["Jul",400,171.6,312,200,172.3,189,null,null,null,"Jul",168,312,169,186,null,"Maximum: for 1/2 hourly and daily periods use the highest value across all operational combustion lines for the month"]
["Aug",400,177.3,316,200,177.3,192,null,null,null,"Aug",170,316,171,183]
["Sep",400,165.2,440.7,200,166.4,203,null,null,null,"Sep",161.19999999999999,394.3,163.30000000000001,184.6]
["Oct",400,165.6,287.3,200,166.1,185.7,null,null,null,"Oct",160.80000000000001,268.89999999999998,162.30000000000001,170.8]
["Nov",400,147.5,233.8,200,147.5,183.9,null,null,null,"Nov",133.19999999999999,233.8,133.19999999999999,156.30000000000001]
["Dec",400,151.4,217.8,200,151.5,167,null,null,null,"Dec",144,217.8,144.30000000000001,158.6]
[null,null,null,null,null,null,null,null,null,null,"Annual",{"$f":"AVERAGE(L7:L18)","v":162.1},{"$f":"MAX(M7:M18)","v":394.3},{"$f":"AVERAGE(N7:N18)","v":162.09166666666667},{"$f":"MAX(O7:O18)","v":186}]
[]
[null,null,null,null,null,null,null,null,null,{"$f":"+A6","v":2021},"mg/Nm3","Monthly 1/2 hourly mean","Monthly 1/2 hourly maximum","Monthly daily mean","Monthly daily maximum"]
[null,null,null,null,null,null,null,null,null,"A2","Jan",145,258,145,169]
[null,null,null,null,null,null,null,null,null,null,"Feb",141,242,141,163]
[null,null,null,null,null,null,null,null,null,null,"Mar",153,227,155,175]
[null,null,null,null,null,null,null,null,null,null,"Apr",158,223,158,179]
[null,null,null,null,null,null,null,null,null,null,"May",158,251,156,181]
[null,null,null,null,null,null,null,null,null,null,"Jun",169,267,169,186]
[null,null,null,null,null,null,null,null,null,null,"Jul",174,247,175,185]
[null,null,null,null,null,null,null,null,null,null,"Aug",178,243,177,185]
[null,null,null,null,null,null,null,null,null,null,"Sep",159.6,215,160.9,168.2]
[null,null,null,null,null,null,null,null,null,null,"Oct",167.5,223,167.5,185.3]
[null,null,null,null,null,null,null,null,null,null,"Nov",155.6,215.5,155.69999999999999,182.2]
[null,null,null,null,null,null,null,null,null,null,"Dec",154.9,198.4,154.9,165.1]
[null,null,null,null,null,null,null,null,null,null,"Annual",{"$f":"AVERAGE(L22:L33)","v":159.46666666666667},{"$f":"MAX(M22:M33)","v":267},{"$f":"AVERAGE(N22:N33)","v":159.58333333333334},{"$f":"MAX(O22:O33)","v":186}]
[]
[null,null,null,null,null,null,null,null,null,{"$f":"+A6","v":2021},"mg/Nm3","Monthly 1/2 hourly mean","Monthly 1/2 hourly maximum","Monthly daily mean","Monthly daily maximum"]
[null,null,null,null,null,null,null,null,null,"A3","Jan",129,176,129,151]
[null,null,null,null,null,null,null,null,null,null,"Feb",132,195,133,159]
[null,null,null,null,null,null,null,null,null,null,"Mar",138,187,138,161]
[null,null,null,null,null,null,null,null,null,null,"Apr",132,190,132,161]
[null,null,null,null,null,null,null,null,null,null,"May",141,336,142,161]
[null,null,null,null,null,null,null,null,null,null,"Jun",147,227,147,167]
[null,null,null,null,null,null,null,null,null,null,"Jul",173,294,173,189]
[null,null,null,null,null,null,null,null,null,null,"Aug",184,279,184,192]
[null,null,null,null,null,null,null,null,null,null,"Sep",175,440.7,175.2,203]
[null,null,null,null,null,null,null,null,null,null,"Oct",168.7,287.3,168.7,185.7]
[null,null,null,null,null,null,null,null,null,null,"Nov",153.9,222.1,153.80000000000001,183.9]
["Comments :",null,null,null,null,null,null,null,null,null,"Dec",155.5,210.3,155.30000000000001,167.3]
[null,null,null,null,null,null,null,null,null,null,"Annual",{"$f":"AVERAGE(L37:L48)","v":152.42500000000001},{"$f":"MAX(M37:M48)","v":440.7},{"$f":"AVERAGE(N37:N48)","v":152.58333333333334},{"$f":"MAX(O37:O48)","v":203}]
[]
[null,null,null,null,null,null,null,null,null,{"$f":"+A6","v":2021},"mg/Nm3","Monthly 1/2 hourly mean","Monthly 1/2 hourly maximum","Monthly daily mean","Monthly daily maximum"]
[null,null,null,null,null,null,null,null,null,"A4","Jan"]
[null,null,null,null,null,null,null,null,null,null,"Feb"]
[null,null,null,null,null,null,null,null,null,null,"Mar"]
[null,null,null,null,null,null,null,null,null,null,"Apr"]
[null,null,null,null,null,null,null,null,null,null,"May"]
[null,null,null,null,null,null,null,null,null,null,"Jun"]
[null,null,null,null,null,null,null,null,null,null,"Jul"]
[null,null,null,null,null,null,null,null,null,null,"Aug"]
[null,null,null,null,null,null,null,null,null,null,"Sep"]
[null,null,null,null,null,null,null,null,null,null,"Oct"]
[null,null,null,null,null,null,null,null,null,null,"Nov"]
[null,null,null,null,null,null,null,null,null,null,"Dec"]
[null,null,null,null,null,null,null,null,null,null,"Annual",{"$f":"AVERAGE(L52:L63)","v":{"$error":"#DIV/0!"}},{"$f":"MAX(M52:M63)","v":0},{"$f":"AVERAGE(N52:N63)","v":{"$error":"#DIV/0!"}},{"$f":"MAX(O52:O63)","v":0}]
[]
[null,null,null,null,null,null,null,null,null,{"$f":"+A6","v":2021},"mg/Nm3","Monthly 1/2 hourly mean","Monthly 1/2 hourly maximum","Monthly daily mean","Monthly daily maximum"]
[null,null,null,null,null,null,null,null,null,"A5","Jan"]
[null,null,null,null,null,null,null,null,null,null,"Feb"]
[null,null,null,null,null,null,null,null,null,null,"Mar"]
[null,null,null,null,null,null,null,null,null,null,"Apr"]
[null,null,null,null,null,null,null,null,null,null,"May"]
[null,null,null,null,null,null,null,null,null,null,"Jun"]
[null,null,null,null,null,null,null,null,null,null,"Jul"]
[null,null,null,null,null,null,null,null,null,null,"Aug"]
[null,null,null,null,null,null,null,null,null,null,"Sep"]
[null,null,null,null,null,null,null,null,null,null,"Oct"]
[null,null,null,null,null,null,null,null,null,null,"Nov"]
[null,null,null,null,null,null,null,null,null,null,"Dec"]
[null,null,null,null,null,null,null,null,null,null,"Annual",{"$f":"AVERAGE(L67:L78)","v":{"$error":"#DIV/0!"}},{"$f":"MAX(M67:M78)","v":0},{"$f":"AVERAGE(N67:N78)","v":{"$error":"#DIV/0!"}},{"$f":"MAX(O67:O78)","v":0}]

{"sheet":"TOC","index":17,"n_rows":79,"n_cols":17,"rows_kept":79,"cut":false,"hidden":false,"merged":[[3,16,7,18],[4,1,4,3],[4,4,4,6],[4,9,4,14],[6,9,18,9],[9,16,11,18],[12,16,15,18],[66,9,78,9],[21,9,33,9],[36,9,48,9],[47,0,47,6],[48,0,51,6],[51,9,63,9]]}
[{"$f":"+'Cover Page'!$B$29","v":"Annual Performance Report 2021"},null,null,null,{"$f":"+'Cover Page'!$B$33","v":"Kent Enviropower Limited"}]
[]
["Monitoring of Total organic carbon emissions",null,null,"Whole Installation",null,null,"See  Notes in Cell Q3",null,null,{"$f":"+A3","v":"Monitoring of Total organic carbon emissions"},null,null,null,"Per Combustion Line",null,null,"Notes:"]
[null,null,null,null,null,null,null,null,null,null,null,null,null,null,null,null,"User to add logic to complete Whole installation, Table A5:G18. From the data in Per Combustion Line, Table J6:O79, subject to No. of lines installed"]
["mg/Nm3","1/2 Hourly Reference Periods",null,null,"Daily Reference Periods"]
[{"$f":"+'Cover Page'!C39","v":2021},"1/2 hourly TOC ELV","Monthly 1/2 hourly mean","Highest 1/2 hourly maximum","Daily TOC ELV","Monthly daily mean","Highest daily maximum",null,null,{"$f":"+A6","v":2021},"mg/Nm3","Monthly 1/2 hourly mean","Monthly 1/2 hourly maximum","Monthly daily mean","Monthly daily maximum"]
["Jan",20,0.48,30.02,10,0.4,1.36,null,null,"A1","Jan",0.68,17.239999999999998,0.59,1.36]
["Feb",20,1.05,577.04999999999995,10,0.83,3.78,null,null,null,"Feb",1.53,77.709999999999994,1.42,3.78]
["Mar",20,0.85,273.33,10,0.67,3.33,null,null,null,"Mar",1.49,61.71,1.46,3.33,null,"Whole Installation table A5:G18:"]
["Apr",20,0.99,79.150000000000006,10,0.92,3.95,null,null,null,"Apr",2.23,79.150000000000006,2.0099999999999998,3.95,null,"Mean: for 1/2 hourly and daily periods calculate mean of values across all operational combustion lines for the month"]
["May",20,0.56000000000000005,42.98,10,0.51,1.66,null,null,null,"May",0.75,12.58,0.78,1.66]
["Jun",20,0.78,100.5,10,0.71,2.46,null,null,null,"Jun",0.98,48.18,0.78,1.78]
["Jul",20,0.74,40.44,10,0.73,2.4300000000000002,null,null,null,"Jul",0.77,40.44,0.76,2.4300000000000002,null,"Maximum: for 1/2 hourly and daily periods use the highest value across all operational combustion lines for the month"]
["Aug",20,1.1599999999999999,240.1,10,1.06,5.79,null,null,null,"Aug",1.32,240.1,1.24,5.79]
["Sep",20,0.8,280.10000000000002,10,0.56000000000000005,3.7,null,null,null,"Sep",1,280.10000000000002,0.5,1.3]
["Oct",20,0.53,91,10,0.53,3,null,null,null,"Oct",0.7,36.6,0.7,1.1000000000000001]
["Nov",20,0.46,27.8,10,0.43,1.2,null,null,null,"Nov",0.4,27.8,0.4,1]
["Dec",20,0.5,124.8,10,0.46,1.3,null,null,null,"Dec",0.5,124.8,0.4,0.8]
[null,null,null,null,null,null,null,null,null,null,"Annual",{"$f":"AVERAGE(L7:L18)","v":1.0291666666666666},{"$f":"MAX(M7:M18)","v":280.10000000000002},{"$f":"AVERAGE(N7:N18)","v":0.91999999999999993},{"$f":"MAX(O7:O18)","v":5.79}]
[]
[null,null,null,null,null,null,null,null,null,{"$f":"+A6","v":2021},"mg/Nm3","Monthly 1/2 hourly mean","Monthly 1/2 hourly maximum","Monthly daily mean","Monthly daily maximum"]
[null,null,null,null,null,null,null,null,null,"A2","Jan",0.3,30.02,0.2,0.46]
[null,null,null,null,null,null,null,null,null,null,"Feb",1.1299999999999999,577.04999999999995,0.62,3.77]
[null,null,null,null,null,null,null,null,null,null,"Mar",0.69,273.73,0.21,0.62]
[null,null,null,null,null,null,null,null,null,null,"Apr",0.35,24.67,0.35,1.0900000000000001]
[null,null,null,null,null,null,null,null,null,null,"May",0.53,42.98,0.38,1.08]
[null,null,null,null,null,null,null,null,null,null,"Jun",0.65,100.5,0.65,2.46]
[null,null,null,null,null,null,null,null,null,null,"Jul",0.55000000000000004,20.260000000000002,0.51,1.42]
[null,null,null,null,null,null,null,null,null,null,"Aug",0.65,44.91,0.63,1.89]
[null,null,null,null,null,null,null,null,null,null,"Sep",0.8,157.30000000000001,0.7,3.7]
[null,null,null,null,null,null,null,null,null,null,"Oct",0.3,19.2,0.3,1]
[null,null,null,null,null,null,null,null,null,null,"Nov",0.3,8.5,0.3,0.5]
[null,null,null,null,null,null,null,null,null,null,"Dec",0.3,9.6,0.3,0.5]
[null,null,null,null,null,null,null,null,null,null,"Annual",{"$f":"AVERAGE(L22:L33)","v":0.54583333333333328},{"$f":"MAX(M22:M33)","v":577.04999999999995},{"$f":"AVERAGE(N22:N33)","v":0.42916666666666664},{"$f":"MAX(O22:O33)","v":3.77}]
[]
[null,null,null,null,null,null,null,null,null,{"$f":"+A6","v":2021},"mg/Nm3","Monthly 1/2 hourly mean","Monthly 1/2 hourly maximum","Monthly daily mean","Monthly daily maximum"]
[null,null,null,null,null,null,null,null,null,"A3","Jan",0.46,28.3,0.42,1.1399999999999999]
[null,null,null,null,null,null,null,null,null,null,"Feb",0.49,51.42,0.46,1.36]
[null,null,null,null,null,null,null,null,null,null,"Mar",0.39,20.86,0.36,0.78]
[null,null,null,null,null,null,null,null,null,null,"Apr",0.41,14.38,0.41,1.03]
[null,null,null,null,null,null,null,null,null,null,"May",0.4,19.690000000000001,0.37,0.95]
[null,null,null,null,null,null,null,null,null,null,"Jun",0.71,25.67,0.7,2.35]
[null,null,null,null,null,null,null,null,null,null,"Jul",0.92,21.92,0.92,1.64]
[null,null,null,null,null,null,null,null,null,null,"Aug",1.51,230.51,1.32,3.66]
[null,null,null,null,null,null,null,null,null,null,"Sep",0.6,16.100000000000001,0.5,1.1000000000000001]
[null,null,null,null,null,null,null,null,null,null,"Oct",0.6,91,0.6,3]
[null,null,null,null,null,null,null,null,null,null,"Nov",0.7,14.2,0.6,1.2]
["Comments :",null,null,null,null,null,null,null,null,null,"Dec",0.7,24.2,0.7,1.3]
[null,null,null,null,null,null,null,null,null,null,"Annual",{"$f":"AVERAGE(L37:L48)","v":0.65749999999999997},{"$f":"MAX(M37:M48)","v":230.51},{"$f":"AVERAGE(N37:N48)","v":0.61333333333333329},{"$f":"MAX(O37:O48)","v":3.66}]
[]
[null,null,null,null,null,null,null,null,null,{"$f":"+A6","v":2021},"mg/Nm3","Monthly 1/2 hourly mean","Monthly 1/2 hourly maximum","Monthly daily mean","Monthly daily maximum"]
[null,null,null,null,null,null,null,null,null,"A4","Jan"]
[null,null,null,null,null,null,null,null,null,null,"Feb"]
[null,null,null,null,null,null,null,null,null,null,"Mar"]
[null,null,null,null,null,null,null,null,null,null,"Apr"]
[null,null,null,null,null,null,null,null,null,null,"May"]
[null,null,null,null,null,null,null,null,null,null,"Jun"]
[null,null,null,null,null,null,null,null,null,null,"Jul"]
[null,null,null,null,null,null,null,null,null,null,"Aug"]
[null,null,null,null,null,null,null,null,null,null,"Sep"]
[null,null,null,null,null,null,null,null,null,null,"Oct"]
[null,null,null,null,null,null,null,null,null,null,"Nov"]
[null,null,null,null,null,null,null,null,null,null,"Dec"]
[null,null,null,null,null,null,null,null,null,null,"Annual",{"$f":"AVERAGE(L52:L63)","v":{"$error":"#DIV/0!"}},{"$f":"MAX(M52:M63)","v":0},{"$f":"AVERAGE(N52:N63)","v":{"$error":"#DIV/0!"}},{"$f":"MAX(O52:O63)","v":0}]
[]
[null,null,null,null,null,null,null,null,null,{"$f":"+A6","v":2021},"mg/Nm3","Monthly 1/2 hourly mean","Monthly 1/2 hourly maximum","Monthly daily mean","Monthly daily maximum"]
[null,null,null,null,null,null,null,null,null,"A5","Jan"]
[null,null,null,null,null,null,null,null,null,null,"Feb"]
[null,null,null,null,null,null,null,null,null,null,"Mar"]
[null,null,null,null,null,null,null,null,null,null,"Apr"]
[null,null,null,null,null,null,null,null,null,null,"May"]
[null,null,null,null,null,null,null,null,null,null,"Jun"]
[null,null,null,null,null,null,null,null,null,null,"Jul"]
[null,null,null,null,null,null,null,null,null,null,"Aug"]
[null,null,null,null,null,null,null,null,null,null,"Sep"]
[null,null,null,null,null,null,null,null,null,null,"Oct"]
[null,null,null,null,null,null,null,null,null,null,"Nov"]
[null,null,null,null,null,null,null,null,null,null,"Dec"]
[null,null,null,null,null,null,null,null,null,null,"Annual",{"$f":"AVERAGE(L67:L78)","v":{"$error":"#DIV/0!"}},{"$f":"MAX(M67:M78)","v":0},{"$f":"AVERAGE(N67:N78)","v":{"$error":"#DIV/0!"}},{"$f":"MAX(O67:O78)","v":0}]

{"sheet":"Particulates","index":18,"n_rows":79,"n_cols":17,"rows_kept":79,"cut":false,"hidden":false,"merged":[[3,16,7,18],[4,1,4,3],[4,4,4,6],[4,9,4,14],[6,9,18,9],[9,16,11,18],[12,16,15,18],[66,9,78,9],[21,9,33,9],[36,9,48,9],[47,0,47,6],[48,0,51,6],[51,9,63,9]]}
[{"$f":"+'Cover Page'!$B$29","v":"Annual Performance Report 2021"},null,null,null,{"$f":"+'Cover Page'!$B$33","v":"Kent Enviropower Limited"}]
[]
["Monitoring of Particulate matter emissions",null,null,"Whole Installation",null,null,"See  Notes in Cell Q3",null,null,{"$f":"+A3","v":"Monitoring of Particulate matter emissions"},null,null,null,"Per Combustion Line",null,null,"Notes:"]
[null,null,null,null,null,null,null,null,null,null,null,null,null,null,null,null,"User to add logic to complete Whole installation, Table A5:G18. From the data in Per Combustion Line, Table J6:O79, subject to No. of lines installed"]
["mg/Nm3","1/2 Hourly Reference Periods",null,null,"Daily Reference Periods"]
[{"$f":"+'Cover Page'!C39","v":2021},"1/2 hourly PM ELV","Monthly 1/2 hourly mean","Highest 1/2 hourly maximum","Daily PM ELV","Monthly daily mean","Highest daily maximum",null,null,{"$f":"+A6","v":2021},"mg/Nm3","Monthly 1/2 hourly mean","Monthly 1/2 hourly maximum","Monthly daily mean","Monthly daily maximum"]
["Jan",30,0.86599999999999999,33.6,10,0.76,1.5,null,null,"A1","Jan",0.6,33.6,0.5,1.1000000000000001]
["Feb",30,0.9,13.6,10,0.86,2.9,null,null,null,"Feb",0.8,12.2,0.8,2.9]
["Mar",30,1.26,13.9,10,1.23,5,null,null,null,"Mar",1.3,13.9,1.3,5,null,"Whole Installation table A5:G18:"]
["Apr",30,1.56,63.8,10,1.46,4.8,null,null,null,"Apr",1.5,63.8,1.3,2.9,null,"Mean: for 1/2 hourly and daily periods calculate mean of values across all operational combustion lines for the month"]
["May",30,1.53,46.1,10,1.56,6.3,null,null,null,"May",0.8,46.1,0.8,6.3]
["Jun",30,1.1000000000000001,25.7,10,1.1000000000000001,6.4,null,null,null,"Jun",0.2,0.5,0.2,0.3]
["Jul",30,1.43,8.06,10,1.43,7.9,null,null,null,"Jul",0.2,0.4,0.2,0.2,null,"Maximum: for 1/2 hourly and daily periods use the highest value across all operational combustion lines for the month"]
["Aug",30,2.16,17.760000000000002,10,2.1,6.9,null,null,null,"Aug",0.3,14.5,0.2,0.3]
["Sep",30,2.46,134.69999999999999,10,2.5,7.6,null,null,null,"Sep",0.3,134.69999999999999,0.2,0.4]
["Oct",30,1.3,16.600000000000001,10,1.3,4.4000000000000004,null,null,null,"Oct",0.1,0.3,0.1,0.1]
["Nov",30,1.43,14.6,10,1.43,4.7,null,null,null,"Nov",0.1,1.8,0.1,0.1]
["Dec",30,2.0299999999999998,9.1999999999999993,10,2.0299999999999998,4.7,null,null,null,"Dec",0.2,4.3,0.2,1.9]
[null,null,null,null,null,null,null,null,null,null,"Annual",{"$f":"AVERAGE(L7:L18)","v":0.53333333333333333},{"$f":"MAX(M7:M18)","v":134.69999999999999},{"$f":"AVERAGE(N7:N18)","v":0.4916666666666667},{"$f":"MAX(O7:O18)","v":6.3}]
[]
[null,null,null,null,null,null,null,null,null,{"$f":"+A6","v":2021},"mg/Nm3","Monthly 1/2 hourly mean","Monthly 1/2 hourly maximum","Monthly daily mean","Monthly daily maximum"]
[null,null,null,null,null,null,null,null,null,"A2","Jan",0.9,11.2,0.7,1.4]
[null,null,null,null,null,null,null,null,null,null,"Feb",0.8,7.4,0.8,2]
[null,null,null,null,null,null,null,null,null,null,"Mar",0.9,8.1,0.9,1.1000000000000001]
[null,null,null,null,null,null,null,null,null,null,"Apr",1.5,10.1,1.5,4.8]
[null,null,null,null,null,null,null,null,null,null,"May",2.2000000000000002,14.3,2.2999999999999998,6]
[null,null,null,null,null,null,null,null,null,null,"Jun",2,25.7,2,6.4]
[null,null,null,null,null,null,null,null,null,null,"Jul",3,21.8,3,7.9]
[null,null,null,null,null,null,null,null,null,null,"Aug",3.3,33.200000000000003,3.3,6.9]
[null,null,null,null,null,null,null,null,null,null,"Sep",1.9,7.3,1.9,2.4]
[null,null,null,null,null,null,null,null,null,null,"Oct",1.9,16.600000000000001,1.9,4.4000000000000004]
[null,null,null,null,null,null,null,null,null,null,"Nov",2.5,7,2.4,3.4]
[null,null,null,null,null,null,null,null,null,null,"Dec",3.1,9.1999999999999993,3.1,4.7]
[null,null,null,null,null,null,null,null,null,null,"Annual",{"$f":"AVERAGE(L22:L33)","v":2},{"$f":"MAX(M22:M33)","v":33.200000000000003},{"$f":"AVERAGE(N22:N33)","v":1.9833333333333332},{"$f":"MAX(O22:O33)","v":7.9}]
[]
[null,null,null,null,null,null,null,null,null,{"$f":"+A6","v":2021},"mg/Nm3","Monthly 1/2 hourly mean","Monthly 1/2 hourly maximum","Monthly daily mean","Monthly daily maximum"]
[null,null,null,null,null,null,null,null,null,"A3","Jan",1.1000000000000001,13.3,1.1000000000000001,1.5]
[null,null,null,null,null,null,null,null,null,null,"Feb",1.1000000000000001,13.6,1,1.3]
[null,null,null,null,null,null,null,null,null,null,"Mar",1.6,7.3,1.5,3.2]
[null,null,null,null,null,null,null,null,null,null,"Apr",1.7,3.3,1.6,2]
[null,null,null,null,null,null,null,null,null,null,"May",1.6,2.9,1.6,2.1]
[null,null,null,null,null,null,null,null,null,null,"Jun",1.1000000000000001,2.2999999999999998,1.1000000000000001,2]
[null,null,null,null,null,null,null,null,null,null,"Jul",1.1000000000000001,2,1.1000000000000001,1.5]
[null,null,null,null,null,null,null,null,null,null,"Aug",2.9,5.6,2.8,4.3]
[null,null,null,null,null,null,null,null,null,null,"Sep",5.2,11.6,5.4,7.6]
[null,null,null,null,null,null,null,null,null,null,"Oct",1.9,4.3,1.9,2.7]
[null,null,null,null,null,null,null,null,null,null,"Nov",1.7,14.6,1.8,4.7]
["Comments :",null,null,null,null,null,null,null,null,null,"Dec",2.8,6.8,2.8,4.0999999999999996]
[null,null,null,null,null,null,null,null,null,null,"Annual",{"$f":"AVERAGE(L37:L48)","v":1.9833333333333332},{"$f":"MAX(M37:M48)","v":14.6},{"$f":"AVERAGE(N37:N48)","v":1.9750000000000003},{"$f":"MAX(O37:O48)","v":7.6}]
[]
[null,null,null,null,null,null,null,null,null,{"$f":"+A6","v":2021},"mg/Nm3","Monthly 1/2 hourly mean","Monthly 1/2 hourly maximum","Monthly daily mean","Monthly daily maximum"]
[null,null,null,null,null,null,null,null,null,"A4","Jan"]
[null,null,null,null,null,null,null,null,null,null,"Feb"]
[null,null,null,null,null,null,null,null,null,null,"Mar"]
[null,null,null,null,null,null,null,null,null,null,"Apr"]
[null,null,null,null,null,null,null,null,null,null,"May"]
[null,null,null,null,null,null,null,null,null,null,"Jun"]
[null,null,null,null,null,null,null,null,null,null,"Jul"]
[null,null,null,null,null,null,null,null,null,null,"Aug"]
[null,null,null,null,null,null,null,null,null,null,"Sep"]
[null,null,null,null,null,null,null,null,null,null,"Oct"]
[null,null,null,null,null,null,null,null,null,null,"Nov"]
[null,null,null,null,null,null,null,null,null,null,"Dec"]
[null,null,null,null,null,null,null,null,null,null,"Annual",{"$f":"AVERAGE(L52:L63)","v":{"$error":"#DIV/0!"}},{"$f":"MAX(M52:M63)","v":0},{"$f":"AVERAGE(N52:N63)","v":{"$error":"#DIV/0!"}},{"$f":"MAX(O52:O63)","v":0}]
[]
[null,null,null,null,null,null,null,null,null,{"$f":"+A6","v":2021},"mg/Nm3","Monthly 1/2 hourly mean","Monthly 1/2 hourly maximum","Monthly daily mean","Monthly daily maximum"]
[null,null,null,null,null,null,null,null,null,"A5","Jan"]
[null,null,null,null,null,null,null,null,null,null,"Feb"]
[null,null,null,null,null,null,null,null,null,null,"Mar"]
[null,null,null,null,null,null,null,null,null,null,"Apr"]
[null,null,null,null,null,null,null,null,null,null,"May"]
[null,null,null,null,null,null,null,null,null,null,"Jun"]
[null,null,null,null,null,null,null,null,null,null,"Jul"]
[null,null,null,null,null,null,null,null,null,null,"Aug"]
[null,null,null,null,null,null,null,null,null,null,"Sep"]
[null,null,null,null,null,null,null,null,null,null,"Oct"]
[null,null,null,null,null,null,null,null,null,null,"Nov"]
[null,null,null,null,null,null,null,null,null,null,"Dec"]
[null,null,null,null,null,null,null,null,null,null,"Annual",{"$f":"AVERAGE(L67:L78)","v":{"$error":"#DIV/0!"}},{"$f":"MAX(M67:M78)","v":0},{"$f":"AVERAGE(N67:N78)","v":{"$error":"#DIV/0!"}},{"$f":"MAX(O67:O78)","v":0}]

{"sheet":"CO 95% 10 min","index":19,"n_rows":79,"n_cols":19,"rows_kept":79,"cut":false,"hidden":false,"merged":[[3,18,7,20],[4,1,4,4],[4,5,4,7],[4,10,4,16],[6,10,18,10],[9,18,11,20],[12,18,15,20],[66,10,78,10],[21,10,33,10],[36,10,48,10],[47,0,47,7],[48,0,51,7],[51,10,63,10]]}
[{"$f":"+'Cover Page'!$B$29","v":"Annual Performance Report 2021"},null,null,null,{"$f":"+'Cover Page'!$B$33","v":"Kent Enviropower Limited"}]
[]
["Monitoring of Carbon Monoxide (10-minute avg)",null,null,null,"Whole Installation",null,null,"See  Notes in Cell S3",null,{"$f":"+A3","v":"Monitoring of Carbon Monoxide (10-minute avg)"},null,null,null,null,"Per Combustion Line",null,"Notes:",null,"Notes:"]
[null,null,null,null,null,null,null,null,null,null,null,null,null,null,null,null,null,null,"User to add logic to complete Whole installation, Table A5:H18. From the data in Per Combustion Line, Table K6:Q79, subject to No. of lines installed"]
["mg/Nm3","10-minute Reference Periods",null,null,null,"Daily Reference Periods"]
[{"$f":"+'Cover Page'!C39","v":2021},"95%ile 10-min avg CO ELV","95%ile 10-min avg maximum","Monthly CO 10-min avg mean","10-min avg maximum","Daily CO ELV","Monthly daily mean","Highest daily maximum",null,null,{"$f":"+A6","v":2021},"mg/Nm3","95%ile 10-min avg maximum","Monthly CO 10-min avg mean","10-min avg maximum","Monthly daily mean","Monthly daily maximum"]
["Jan",150,18.899999999999999,5,1142,50,4.5999999999999996,17,null,null,"A1","Jan",5.8,3,1066,3,10]
["Feb",{"$f":"+B7","v":150},34.5,8.3000000000000007,4494,{"$f":"+F7","v":50},6.6,18,null,null,null,"Feb",34.5,10,2694,8,18]
["Mar",150,35,8.3000000000000007,1522,50,8.3000000000000007,16,null,null,null,"Mar",23.7,6,1522,14,6,null,"Whole Installation table A5:H18:"]
["Apr",150,49.9,8,2226,50,7.3,21,null,null,null,"Apr",40.9,9,1511,7,11,null,"Mean: for 10-min and daily periods use average of all operational combustion lines."]
["May",150,49.6,8.3000000000000007,1771,50,7.3,29,null,null,null,"May",26,7,289,7,12]
["Jun",150,68,9.6,4267,50,9.6,38,null,null,null,"Jun",68,14,1986,13,27]
["Jul",150,48.7,9.6,1871,50,9.6,23,null,null,null,"Jul",48.7,12,1871,12,23,null,"Maximum: for 10-min and daily periods use the highest of all operational combustion lines in any month."]
["Aug",150,57.9,10.3,2579,50,9,25,null,null,null,"Aug",50.1,14,2579,12,25]
["Sep",150,59.8,11.5,4801,50,9,45,null,null,null,"Sep",59.8,16.8,4801.1000000000004,11.7,45.7]
["Oct",150,35.299999999999997,8.6,2540,50,8.4,37,null,null,null,"Oct",35.299999999999997,13.6,2540,13,37.1]
["Nov",150,42.1,5.6,6121,50,5.4,46,null,null,null,"Nov",5.8,4.8,6121.2,4.8,46.4]
["Dec",150,47.5,6.1,6370,50,4.9000000000000004,21,null,null,null,"Dec",12.3,6.9,6370.8,3.8,8.6999999999999993]
[null,null,null,null,null,null,null,null,null,null,null,"Annual",{"$f":"AVERAGE(M7:M18)","v":34.241666666666674},null,{"$f":"MAX(O7:O18)","v":6370.8},{"$f":"AVERAGE(P7:P18)","v":9.1083333333333325},{"$f":"MAX(Q7:Q18)","v":46.4}]
[]
[null,null,null,null,null,null,null,null,null,null,{"$f":"+A6","v":2021},"mg/Nm3","95%ile 10-min avg maximum","Monthly CO 10-min avg mean","10-min avg maximum","Monthly daily mean","Monthly daily maximum"]
[null,null,null,null,null,null,null,null,null,null,"A2","Jan",8.1999999999999993,7,1142,6,17]
[null,null,null,null,null,null,null,null,null,null,null,"Feb",14.8,9,4494,7,17]
[null,null,null,null,null,null,null,null,null,null,null,"Mar",35,11,29.5,5,11]
[null,null,null,null,null,null,null,null,null,null,null,"Apr",23.8,7,2226,7,21,21]
[null,null,null,null,null,null,null,null,null,null,null,"May",49.6,11,1771,9,29]
[null,null,null,null,null,null,null,null,null,null,null,"Jun",15.4,9,4267,9,38]
[null,null,null,null,null,null,null,null,null,null,null,"Jul",41.6,8,1015,8,18]
[null,null,null,null,null,null,null,null,null,null,null,"Aug",13.3,6,789,5,13]
[null,null,null,null,null,null,null,null,null,null,null,"Sep",26.7,9.5,1417.3,7.2,21.6]
[null,null,null,null,null,null,null,null,null,null,null,"Oct",14.7,4.7,932.4,4.5,20.399999999999999]
[null,null,null,null,null,null,null,null,null,null,null,"Nov",11.9,3.3,421.2,3,9.6999999999999993]
[null,null,null,null,null,null,null,null,null,null,null,"Dec",2.9,2.2000000000000002,518.6,2.2000000000000002,5.4]
[null,null,null,null,null,null,null,null,null,null,null,"Annual",{"$f":"AVERAGE(M22:M33)","v":21.491666666666664},null,{"$f":"MAX(O22:O33)","v":4494},{"$f":"AVERAGE(P22:P33)","v":6.0750000000000002},{"$f":"MAX(Q22:Q33)","v":38}]
[]
[null,null,null,null,null,null,null,null,null,null,{"$f":"+A6","v":2021},"mg/Nm3","95%ile 10-min avg maximum","Monthly CO 10-min avg mean","10-min avg maximum","Monthly daily mean","Monthly daily maximum"]
[null,null,null,null,null,null,null,null,null,null,"A3","Jan",18.899999999999999,5,544,5,12]
[null,null,null,null,null,null,null,null,null,null,null,"Feb",28.4,6,433,5,12]
[null,null,null,null,null,null,null,null,null,null,null,"Mar",33.4,8,959,6,16]
[null,null,null,null,null,null,null,null,null,null,null,"Apr",49.9,8,1142,8,13]
[null,null,null,null,null,null,null,null,null,null,null,"May",37.6,7,1117,6,17]
[null,null,null,null,null,null,null,null,null,null,null,"Jun",38,6,450,7,16]
[null,null,null,null,null,null,null,null,null,null,null,"Jul",46.2,9,761,9,20]
[null,null,null,null,null,null,null,null,null,null,null,"Aug",57.9,11,1535,10,18]
[null,null,null,null,null,null,null,null,null,null,null,"Sep",40.6,8.4,781.8,8.1,18]
[null,null,null,null,null,null,null,null,null,null,null,"Oct",30.4,7.6,1970.5,7.7,24.3]
[null,null,null,null,null,null,null,null,null,null,null,"Nov",42.1,8.9,1204.5,8.4,21.8]
["Comments :",null,null,null,null,null,null,null,null,null,null,"Dec",47.5,9.3000000000000007,782.6,8.6999999999999993,21.2]
["Environment Agency explanatory note: The 10-minute average ELV is based on the “95th percentile”. In this case this means that 95% of the 10 minute averages in the relevant 24-hour period (i.e. 137) must be below 150 mg/Nm3, and 5% (i.e. 7) are allowed to be any value above 150 mg/Nm3. Whilst we expect operators to minimise CO emissions at all times, it is perfectly acceptable for the value of the maximum 10-minute average to be above 150 mg/Nm3, provided the 95th percentile ELV has been met for that period. ",null,null,null,null,null,null,null,null,null,null,"Annual",{"$f":"AVERAGE(M37:M48)","v":39.241666666666667},null,{"$f":"MAX(O37:O48)","v":1970.5},{"$f":"AVERAGE(P37:P48)","v":7.4083333333333341},{"$f":"MAX(Q37:Q48)","v":24.3}]
[]
[null,null,null,null,null,null,null,null,null,null,{"$f":"+A6","v":2021},"mg/Nm3","95%ile 10-min avg maximum","Monthly CO 10-min avg mean","10-min avg maximum","Monthly daily mean","Monthly daily maximum"]
[null,null,null,null,null,null,null,null,null,null,"A4","Jan"]
[null,null,null,null,null,null,null,null,null,null,null,"Feb"]
[null,null,null,null,null,null,null,null,null,null,null,"Mar"]
[null,null,null,null,null,null,null,null,null,null,null,"Apr"]
[null,null,null,null,null,null,null,null,null,null,null,"May"]
[null,null,null,null,null,null,null,null,null,null,null,"Jun"]
[null,null,null,null,null,null,null,null,null,null,null,"Jul"]
[null,null,null,null,null,null,null,null,null,null,null,"Aug"]
[null,null,null,null,null,null,null,null,null,null,null,"Sep"]
[null,null,null,null,null,null,null,null,null,null,null,"Oct"]
[null,null,null,null,null,null,null,null,null,null,null,"Nov"]
[null,null,null,null,null,null,null,null,null,null,null,"Dec"]
[null,null,null,null,null,null,null,null,null,null,null,"Annual",{"$f":"AVERAGE(M52:M63)","v":{"$error":"#DIV/0!"}},null,{"$f":"MAX(O52:O63)","v":0},{"$f":"AVERAGE(P52:P63)","v":{"$error":"#DIV/0!"}},{"$f":"MAX(Q52:Q63)","v":0}]
[]
[null,null,null,null,null,null,null,null,null,null,{"$f":"+A6","v":2021},"mg/Nm3","95%ile 10-min avg maximum","Monthly CO 10-min avg mean","10-min avg maximum","Monthly daily mean","Monthly daily maximum"]
[null,null,null,null,null,null,null,null,null,null,"A5","Jan"]
[null,null,null,null,null,null,null,null,null,null,null,"Feb"]
[null,null,null,null,null,null,null,null,null,null,null,"Mar"]
[null,null,null,null,null,null,null,null,null,null,null,"Apr"]
[null,null,null,null,null,null,null,null,null,null,null,"May"]
[null,null,null,null,null,null,null,null,null,null,null,"Jun"]
[null,null,null,null,null,null,null,null,null,null,null,"Jul"]
[null,null,null,null,null,null,null,null,null,null,null,"Aug"]
[null,null,null,null,null,null,null,null,null,null,null,"Sep"]
[null,null,null,null,null,null,null,null,null,null,null,"Oct"]
[null,null,null,null,null,null,null,null,null,null,null,"Nov"]
[null,null,null,null,null,null,null,null,null,null,null,"Dec"]
[null,null,null,null,null,null,null,null,null,null,null,"Annual",{"$f":"AVERAGE(M67:M78)","v":{"$error":"#DIV/0!"}},null,{"$f":"MAX(O67:O78)","v":0},{"$f":"AVERAGE(P67:P78)","v":{"$error":"#DIV/0!"}},{"$f":"MAX(Q67:Q78)","v":0}]

{"sheet":"NH3","index":20,"n_rows":79,"n_cols":17,"rows_kept":79,"cut":false,"hidden":false,"merged":[[3,16,7,18],[4,1,4,3],[4,4,4,6],[4,9,4,14],[6,9,18,9],[9,16,11,18],[12,16,15,18],[66,9,78,9],[21,9,33,9],[36,9,48,9],[47,0,47,6],[48,0,51,6],[51,9,63,9]]}
[{"$f":"+'Cover Page'!$B$29","v":"Annual Performance Report 2021"},null,null,null,{"$f":"+'Cover Page'!$B$33","v":"Kent Enviropower Limited"}]
[]
["Monitoring of Ammnonia emissions ",null,null,"Whole Installation",null,null,"See  Notes in Cell Q3",null,null,{"$f":"+A3","v":"Monitoring of Ammnonia emissions "},null,null,null,"Per Combustion Line",null,null,"Notes:"]
[null,null,null,null,null,null,null,null,null,null,null,null,null,null,null,null,"User to add logic to complete Whole installation, Table A5:G18. From the data in Per Combustion Line, Table J6:O79, subject to No. of lines installed"]
["mg/Nm3","1/2 Hourly Reference Periods",null,null,"Daily Reference Periods"]
[{"$f":"+'Cover Page'!C39","v":2021},"1/2 hourly NH3 ELV","Monthly 1/2 hourly mean","Highest 1/2 hourly maximum","Daily NH3 ELV","Monthly daily mean","Highest daily maximum",null,null,{"$f":"+A6","v":2021},"mg/Nm3","Monthly 1/2 hourly mean","Monthly 1/2 hourly maximum","Monthly daily mean","Monthly daily maximum"]
["Jan","N/A","N/A","N/A",10,0.53,1.01,null,null,"A1","Jan","N/A","N/A",0.76,1.01]
["Feb",{"$f":"+B7","v":"N/A"},"N/A","N/A",{"$f":"+E7","v":10},0.56999999999999995,1.25,null,null,null,"Feb","N/A","N/A",0.88,1.25]
["Mar","N/A","N/A","N/A",10,0.61,1.7,null,null,null,"Mar","N/A","N/A",0.93,1.7,null,"Whole Installation table A5:G18:"]
["Apr","N/A","N/A","N/A",10,0.62,1.22,null,null,null,"Apr","N/A","N/A",1.04,1.22,null,"Mean: for 1/2 hourly and daily periods calculate mean of values across all operational combustion lines for the month"]
["May","N/A","N/A","N/A",10,0.41,0.96,null,null,null,"May","N/A","N/A",0.36,0.92]
["Jun","N/A","N/A","N/A",10,0.37,0.87,null,null,null,"Jun","N/A","N/A",0.31,0.65]
["Jul","N/A","N/A","N/A",10,0.28000000000000003,1.95,null,null,null,"Jul","N/A","N/A",0.31,0.72,null,"Maximum: for 1/2 hourly and daily periods use the highest value across all operational combustion lines for the month"]
["Aug","N/A","N/A","N/A",10,0.23,0.71,null,null,null,"Aug","N/A","N/A",0.21,0.42]
["Sep","N/A","N/A","N/A",10,0.23,0.9,null,null,null,"Sep","N/A","N/A",0.2,0.9]
["Oct","N/A","N/A","N/A",10,0.26,1,null,null,null,"Oct","N/A","N/A",0.3,0.7]
["Nov","N/A","N/A","N/A",10,0.2,0.8,null,null,null,"Nov","N/A","N/A",0.2,0.8]
["Dec","N/A","N/A","N/A",10,0.16,0.7,null,null,null,"Dec","N/A","N/A",0.1,0.4]
[null,null,null,null,null,null,null,null,null,null,"Annual",{"$f":"AVERAGE(L7:L18)","v":{"$error":"#DIV/0!"}},{"$f":"MAX(M7:M18)","v":0},{"$f":"AVERAGE(N7:N18)","v":0.46666666666666662},{"$f":"MAX(O7:O18)","v":1.7}]
[]
[null,null,null,null,null,null,null,null,null,{"$f":"+A6","v":2021},"mg/Nm3","Monthly 1/2 hourly mean","Monthly 1/2 hourly maximum","Monthly daily mean","Monthly daily maximum"]
[null,null,null,null,null,null,null,null,null,"A2","Jan","N/A","N/A",0.22,0.34]
[null,null,null,null,null,null,null,null,null,null,"Feb","N/A","N/A",0.25,0.46]
[null,null,null,null,null,null,null,null,null,null,"Mar","N/A","N/A",0.22,0.26]
[null,null,null,null,null,null,null,null,null,null,"Apr","N/A","N/A",0.23,0.46]
[null,null,null,null,null,null,null,null,null,null,"May","N/A","N/A",0.26,0.41]
[null,null,null,null,null,null,null,null,null,null,"Jun","N/A","N/A",0.2,0.87]
[null,null,null,null,null,null,null,null,null,null,"Jul","N/A","N/A",0.22,0.52]
[null,null,null,null,null,null,null,null,null,null,"Aug","N/A","N/A",0.19,0.46]
[null,null,null,null,null,null,null,null,null,null,"Sep","N/A","N/A",0.2,0.5]
[null,null,null,null,null,null,null,null,null,null,"Oct","N/A","N/A",0.2,0.5]
[null,null,null,null,null,null,null,null,null,null,"Nov","N/A","N/A",0.1,0.3]
[null,null,null,null,null,null,null,null,null,null,"Dec","N/A","N/A",0.1,0.2]
[null,null,null,null,null,null,null,null,null,null,"Annual",{"$f":"AVERAGE(L22:L33)","v":{"$error":"#DIV/0!"}},{"$f":"MAX(M22:M33)","v":0},{"$f":"AVERAGE(N22:N33)","v":0.19916666666666669},{"$f":"MAX(O22:O33)","v":0.87}]
[]
[null,null,null,null,null,null,null,null,null,{"$f":"+A6","v":2021},"mg/Nm3","Monthly 1/2 hourly mean","Monthly 1/2 hourly maximum","Monthly daily mean","Monthly daily maximum"]
[null,null,null,null,null,null,null,null,null,"A3","Jan","N/A","N/A",0.62,0.89]
[null,null,null,null,null,null,null,null,null,null,"Feb","N/A","N/A",0.57999999999999996,0.86]
[null,null,null,null,null,null,null,null,null,null,"Mar","N/A","N/A",0.68,0.97]
[null,null,null,null,null,null,null,null,null,null,"Apr","N/A","N/A",0.59,0.76]
[null,null,null,null,null,null,null,null,null,null,"May","N/A","N/A",0.63,0.96]
[null,null,null,null,null,null,null,null,null,null,"Jun","N/A","N/A",0.62,0.78]
[null,null,null,null,null,null,null,null,null,null,"Jul","N/A","N/A",0.32,0.71]
[null,null,null,null,null,null,null,null,null,null,"Aug","N/A","N/A",0.31,0.71]
[null,null,null,null,null,null,null,null,null,null,"Sep","N/A","N/A",0.3,0.6]
[null,null,null,null,null,null,null,null,null,null,"Oct","N/A","N/A",0.3,1]
[null,null,null,null,null,null,null,null,null,null,"Nov","N/A","N/A",0.3,0.7]
["Comments :",null,null,null,null,null,null,null,null,null,"Dec","N/A","N/A",0.3,0.7]
["An indicated ELV value of zero in the table above means that no ammonia limit is set in the permit.  ",null,null,null,null,null,null,null,null,null,"Annual",{"$f":"AVERAGE(L37:L48)","v":{"$error":"#DIV/0!"}},{"$f":"MAX(M37:M48)","v":0},{"$f":"AVERAGE(N37:N48)","v":0.46249999999999991},{"$f":"MAX(O37:O48)","v":1}]
[]
[null,null,null,null,null,null,null,null,null,{"$f":"+A6","v":2021},"mg/Nm3","Monthly 1/2 hourly mean","Monthly 1/2 hourly maximum","Monthly daily mean","Monthly daily maximum"]
[null,null,null,null,null,null,null,null,null,"A4","Jan"]
[null,null,null,null,null,null,null,null,null,null,"Feb"]
[null,null,null,null,null,null,null,null,null,null,"Mar"]
[null,null,null,null,null,null,null,null,null,null,"Apr"]
[null,null,null,null,null,null,null,null,null,null,"May"]
[null,null,null,null,null,null,null,null,null,null,"Jun"]
[null,null,null,null,null,null,null,null,null,null,"Jul"]
[null,null,null,null,null,null,null,null,null,null,"Aug"]
[null,null,null,null,null,null,null,null,null,null,"Sep"]
[null,null,null,null,null,null,null,null,null,null,"Oct"]
[null,null,null,null,null,null,null,null,null,null,"Nov"]
[null,null,null,null,null,null,null,null,null,null,"Dec"]
[null,null,null,null,null,null,null,null,null,null,"Annual",{"$f":"AVERAGE(L52:L63)","v":{"$error":"#DIV/0!"}},{"$f":"MAX(M52:M63)","v":0},{"$f":"AVERAGE(N52:N63)","v":{"$error":"#DIV/0!"}},{"$f":"MAX(O52:O63)","v":0}]
[]
[null,null,null,null,null,null,null,null,null,{"$f":"+A6","v":2021},"mg/Nm3","Monthly 1/2 hourly mean","Monthly 1/2 hourly maximum","Monthly daily mean","Monthly daily maximum"]
[null,null,null,null,null,null,null,null,null,"A5","Jan"]
[null,null,null,null,null,null,null,null,null,null,"Feb"]
[null,null,null,null,null,null,null,null,null,null,"Mar"]
[null,null,null,null,null,null,null,null,null,null,"Apr"]
[null,null,null,null,null,null,null,null,null,null,"May"]
[null,null,null,null,null,null,null,null,null,null,"Jun"]
[null,null,null,null,null,null,null,null,null,null,"Jul"]
[null,null,null,null,null,null,null,null,null,null,"Aug"]
[null,null,null,null,null,null,null,null,null,null,"Sep"]
[null,null,null,null,null,null,null,null,null,null,"Oct"]
[null,null,null,null,null,null,null,null,null,null,"Nov"]
[null,null,null,null,null,null,null,null,null,null,"Dec"]
[null,null,null,null,null,null,null,null,null,null,"Annual",{"$f":"AVERAGE(L67:L78)","v":{"$error":"#DIV/0!"}},{"$f":"MAX(M67:M78)","v":0},{"$f":"AVERAGE(N67:N78)","v":{"$error":"#DIV/0!"}},{"$f":"MAX(O67:O78)","v":0}]